Workbook

Sheet Project Information
B1: Central Coast Region
B2: Stormwater Control Measure
B3: Sizing Calculator | G3: Version: 2/26/2014
B6: 1. Project Information | M6: Ranges | N6: Row
B7: Project name: | M7: DMA-UL | N7: =ROW(start_DMA)+1 -> 19
B8: Project location: | M8: DMA-LR | N8: =ROW(end_DMA)-1 -> 19
B9: Tier 2/Tier 3: | D9: Tier 3 - Retention | M9: SCM-UL | N9: =ROW(start_SCM)+1 -> 30
B10: Design rainfall depth (in): | D10: 2 | M10: SCM-LR | N10: =ROW(end_SCM)-1 -> 30
B11: Total project area (ft2): | M11: OUT-UL | N11: =ROW(start_Output)+1 -> 38
B12: Total new impervious area (ft2): | M12: OUT-LR | N12: =ROW(end_Output)-1 -> 38
B13: Total replaced impervious in a USA (ft2):
B14: Total replaced impervious not in a USA (ft2):
B15: Total pervious/landscape area (ft2):
B17: 2. DMA Characterization
A18: Name | C18: DMA Type | D18: Area (ft2) | E18: Surface Type | F18: New, Replaced? | G18: Connection | H18: CN | I18: SCM CODE (DMA_CN_Weight)
H19: =IF(E19="","",VLOOKUP(E19,'Lookups, Constants'!$A$14:$B$23,2,FALSE)) ->  | I19: =IF(H19="","",IF(H19=98,G19 & "_" & VLOOKUP(C19,'Lookups, Constants'!$A$4:$B$7,2,FALSE)&"_"&VLOOKUP(F19,'Lookups, Constants'!$A$43:$B$45,2,FALSE),G19 & "_" & H19)) -> 
A20: end_DMA
A21: DMA Summary Area Check
B22: Total project impervious area (ft2): | D22: =SUMIF($H$19:H20,'Lookups, Constants'!$B$14,$D$19:D20) -> 0
B23: New impervious area (ft2): | D23: =SUM(IF($H$19:H20=98,IF($F$19:F20="New",$D$19:D20,""),"")) -> 0
B24: Replaced impervious within a USA (ft2): | D24: =SUM(IF($H$19:H20=98,IF($F$19:F20="Replaced within a USA",$D$19:D20,""),"")) -> 0
B25: Replaced impervious not in a USA (ft2): | D25: =SUM(IF($H$19:H20=98,IF($F$19:F20="Replaced",$D$19:D20,""),"")) -> 0
B26: Total pervious/landscape area (ft2): | D26: =SUMIF($H$19:H20,"<98",$D$19:D20) -> 0
I27: _2SCM_NEW | J27: _2SCM_RUSA | K27: _2SCM_RPL | L27: _68 | M27: _89
B28: 3. SCM Characterization | I28: New Imp Area | J28: Rpl Imp USA | K28: Rpl Imp non-USA | L28: Landscape | M28: Solid unit pavers | N28: SUM
A29: Name | C29: SCM Type | D29: Safety Factor | E29: SCM Soil Type | F29: Infilt. Rate (in/hr) | G29: Area (ft2)
D30: =IF(C30="","",IF(C30="Bioretention",1,2)) ->  | H30: =IF(A30="","",A30) ->  | I30: =IF(H30="","",SUMIF($I$19:$I$20,$A30 & I$27,$D$19:$D$20)) ->  | J30: =IF(H30="","",SUMIF($I$19:$I$20,$A30 & J$27,$D$19:$D$20)) ->  | K30: =IF(H30="","",SUMIF($I$19:$I$20,$A30 & K$27,$D$19:$D$20)) ->  | L30: =IF(H30="","",SUMIF($I$19:$I$20,$A30 & L$27,$D$19:$D$20)) ->  | M30: =IF(H30="","",SUMIF($I$19:$I$20,$A30 & M$27,$D$19:$D$20)) ->  | N30: =SUM(I30:M30) -> 0
A31: end_SCM | I31: =IF(H31="","",SUMIF($I$19:$I$20,$A31 & I$27,$D$19:$D$20)) ->  | J31: =IF(H31="","",SUMIF($I$19:$I$20,$A31 & J$27,$D$19:$D$20)) ->  | K31: =IF(H31="","",SUMIF($I$19:$I$20,$A31 & K$27,$D$19:$D$20)) ->  | L31: =IF(H31="","",SUMIF($I$19:$I$20,$A31 & L$27,$D$19:$D$20)) ->  | M31: =IF(H31="","",SUMIF($I$19:$I$20,$A31 & M$27,$D$19:$D$20)) -> 
B32: 4. Run SBUH Model
B36: 5. SCM Minimum Sizing Requirements
A37: SCM Name | C37: Min. Required Storage Vol. (ft3) | D37: Depth Below Underdrain (ft) | E37: Drain Time (hours) | F37: Results are out of date.
F38: Click 'Launch Model' to update.
A39: end_Output
B41: 6. Self-Retaining Area Sizing Checks
A42: Self-Retaining DMA Name | C42: Self-Retaining DMA Area (ft2) | D42: Tributary DMA Name | E42: Tributary DMA Area (ft2) | F42: Tributary / SRA Area Ratio
A44: end_SRA

Sheet SBUH Model
A1: SCM Hardpan
A3: SBUH Parameters: | M3: SCM Parameters:
C4: Design rainfall depth (in) = | D4: ='Project Information'!$D$10 -> 2 | N4: Plan area (ft2) = | O4: 900
C5: Model time step (min) = | D5: =A22-A21 -> 10 | N5: Sizing factor = | O5: =O4/SUM(D8:D12) -> 0.08181818182
C7: DMA Summary | D7: Area (ft2) | E7: CN | F7: S | G7: Weighting | N7: Design infiltration rate (in/hr) = | O7: 0.75
C8: New impervious area: | D8: 11000 | E8: 98 | F8: =(1000/E8)-10 -> 0.2040816327 | G8: 1 | N8: Safety factor = | O8: 1
C9: Replaced impervious in USA: | D9: 0 | E9: 98 | F9: =(1000/E9)-10 -> 0.2040816327 | G9: 0 | N9: SCM Exfiltration rate (cfs) = | O9: =O4*(O7/12/3600) -> 0.015625
C10: Replaced impervious not USA: | D10: 0 | E10: 98 | F10: =(1000/E10)-10 -> 0.2040816327 | G10: 0.5 | N10: Drainage time (hours) = | O10: =(P165/O9)/3600 -> 11.67132714
C11: Landscape area: | D11: 0 | E11: 68 | F11: =(1000/E11)-10 -> 4.705882353 | G11: 1 | N11: Minimum storage volume (ft3) = | O11: =MAX(P21:P741)*O8*IF(O10>48,1.2,1) -> 770.6741151
C12: Solid unit pavers set in sand: | D12: 0 | E12: 89 | F12: =(1000/E12)-10 -> 1.235955056 | G12: 1 | N12: Gravel volume (ft3) = | O12: =O11/'Lookups, Constants'!$F$3 -> 1926.685288
C13: Non-runoff generating area: | D13: =SUMIF('Project Information'!$H$19:H20,"<69",'Project Information'!$D$19:D20) -> 0 | E13: N/A | F13: N/A | G13: N/A | N13: Gravel depth (ft) = | O13: =O12/O4 -> 2.140761431
C15: Travel path length (ft) = | D15: =SQRT(2*SUM(D8,D11:D13)) -> 148.3239697 | O15: % inflow that
C16: Time of concentration (min) = | D16: =MAX(5,60*0.007*(0.011*D15)^0.8/D4^0.5/0.005^0.4) -> 5 | E16: (rain/runoff) | G16: (rain/runoff) | I16: (rain/runoff) | M16: runoff % | N16: direct rain vol | O16: is exfiltrated | P16: (max/total vol.)
E17: =MAX(E21:E741)/$D$4 -> 0.8871775125 | G17: =MAX(G21:G741)/$D$4 -> 0.09723889556 | I17: =MAX(I21:I741)/$D$4 -> 0.5139815832 | M17: =SUM(M21:M741)/(($D$4/12)*SUM(D$8:D$12)) -> 0.8871775125 | N17: =SUM(N21:N741) -> 150 | O17: =-SUM(O21:O741)/SUM(M21:N741) -> 1 | P17: =MAX(P21:P741)/SUM($M$21:$N$741) -> 0.4338179226
A18: SBUH Runoff Calculations | M18: Bioretention Hydraulics
E19: Impervious | G19: Landscape | I19: Solid unit pavers set in sand
A20: Time (minutes) | B20: Distribution (Type I) | C20: Rainfall Depth (in) | D20: Cumulative Rainfall (in) | E20: Cumulative Runoff Depth (in) | F20: Instantaneous Runoff (in) | G20: Cumulative Runoff Depth (in) | H20: Instantaneous Runoff (in) | I20: Cumulative Runoff Depth (in) | J20: Instantaneous Runoff (in) | K20: Instantaneous Runoff Rate (cfs) | L20: Routed Flow Rate (cfs) | M20: Stormwater Inflow (ft3) | N20: Direct Rain (ft3) | O20: Exfiltration Outflow (ft3) | P20: Bioretention Water Volume (ft3)
A21: 0 | B21: 0 | C21: =$D$4*'SBUH Model'!B21 -> 0 | D21: =C21 -> 0 | E21: =IF(D21<0.2*F$8,0,(D21-0.2*F$8)^2/(D21+0.8*F$8)) -> 0 | F21: 0 | G21: =IF(D21<0.2*F$11,0,(D21-0.2*F$11)^2/(D21+0.8*F$11)) -> 0 | H21: 0 | I21: =IF(D21<0.2*F$12,0,(D21-0.2*F$12)^2/(D21+0.8*F$12)) -> 0 | J21: 0 | K21: =((F21/12)*SUMPRODUCT(D$8:D$10,G$8:G$10)+(H21/12)*D$11+(J21/12)*D$12)/($D$5*60) -> 0 | L21: 0 | M21: =L21*($D$5*60) -> 0 | N21: =(C21/12)*O$4 -> 0 | O21: 0 | P21: 0
A22: 10 | B22: 0.0027 | C22: =$D$4*'SBUH Model'!B22 -> 0.0054 | D22: =C22+D21 -> 0.0054 | E22: =IF(D22<0.2*F$8,0,(D22-0.2*F$8)^2/(D22+0.8*F$8)) -> 0 | F22: =MAX(0,E22-E21) -> 0 | G22: =IF(D22<0.2*F$11,0,(D22-0.2*F$11)^2/(D22+0.8*F$11)) -> 0 | H22: =MAX(0,G22-G21) -> 0 | I22: =IF(D22<0.2*F$12,0,(D22-0.2*F$12)^2/(D22+0.8*F$12)) -> 0 | J22: =MAX(0,I22-I21) -> 0 | K22: =((F22/12)*SUMPRODUCT(D$8:D$10,G$8:G$10)+(H22/12)*D$11+(J22/12)*D$12)/($D$5*60) -> 0 | L22: =MAX(0,L21+(D$5/(2*$D$16+D$5))*(K21+K22-2*L21)) -> 0 | M22: 0 | N22: 0.405 | O22: =-MIN(O$9*D$5*60,SUM(M22,N22,P21)) -> -0.405 | P22: =P21+SUM(M22:O22) -> 0
A23: 20 | B23: 0.0026 | C23: =$D$4*'SBUH Model'!B23 -> 0.0052 | D23: 0.0106 | E23: 0 | F23: =MAX(0,E23-E22) -> 0 | G23: 0 | H23: 0 | I23: 0 | J23: 0 | K23: =((F23/12)*SUMPRODUCT(D$8:D$10,G$8:G$10)+(H23/12)*D$11+(J23/12)*D$12)/($D$5*60) -> 0 | L23: 0 | M23: 0 | N23: 0.39 | O23: -0.39 | P23: =P22+SUM(M23:O23) -> 0
A24: 30 | B24: 0.0027 | C24: =$D$4*'SBUH Model'!B24 -> 0.0054 | D24: 0.016 | E24: 0 | F24: 0 | G24: 0 | H24: 0 | I24: 0 | J24: 0 | K24: 0 | L24: 0 | M24: 0 | N24: 0.405 | O24: -0.405 | P24: 0
A25: 40 | B25: 0.003 | C25: =$D$4*'SBUH Model'!B25 -> 0.006 | D25: 0.022 | E25: 0 | F25: 0 | G25: 0 | H25: 0 | I25: 0 | J25: 0 | K25: 0 | L25: 0 | M25: 0 | N25: 0.45 | O25: -0.45 | P25: 0
A26: 50 | B26: 0.003 | C26: =$D$4*'SBUH Model'!B26 -> 0.006 | D26: 0.028 | E26: 0 | F26: 0 | G26: 0 | H26: 0 | I26: 0 | J26: 0 | K26: 0 | L26: 0 | M26: 0 | N26: 0.45 | O26: -0.45 | P26: 0
A27: 60 | B27: 0.003 | C27: =$D$4*'SBUH Model'!B27 -> 0.006 | D27: 0.034 | E27: 0 | F27: 0 | G27: 0 | H27: 0 | I27: 0 | J27: 0 | K27: 0 | L27: 0 | M27: 0 | N27: 0.45 | O27: -0.45 | P27: 0
A28: 70 | B28: 0.003 | C28: =$D$4*'SBUH Model'!B28 -> 0.006 | D28: 0.04 | E28: 0 | F28: 0 | G28: 0 | H28: 0 | I28: 0 | J28: 0 | K28: 0 | L28: 0 | M28: 0 | N28: 0.45 | O28: -0.45 | P28: 0
A29: 80 | B29: 0.003 | C29: =$D$4*'SBUH Model'!B29 -> 0.006 | D29: 0.046 | E29: 0.0001284038484 | F29: 0.0001284038484 | G29: 0 | H29: 0 | I29: 0 | J29: 0 | K29: 0.0001961725461 | L29: 9.808627306e-05 | M29: 0.05885176384 | N29: 0.45 | O29: -0.5088517638 | P29: 0
A30: 90 | B30: 0.003 | C30: =$D$4*'SBUH Model'!B30 -> 0.006 | D30: 0.052 | E30: 0.0005810251291 | F30: 0.0004526212807 | G30: 0 | H30: 0 | I30: 0 | J30: 0 | K30: 0.0006915047344 | L30: 0.0004438386402 | M30: 0.2663031841 | N30: 0.45 | O30: -0.7163031841 | P30: 0
A31: 100 | B31: 0.003 | C31: =$D$4*'SBUH Model'!B31 -> 0.006 | D31: 0.058 | E31: 0.001334500375 | F31: 0.0007534752455 | G31: 0 | H31: 0 | I31: 0 | J31: 0 | K31: 0.001151142736 | L31: 0.0009213237353 | M31: 0.5527942412 | N31: 0.45 | O31: -1.002794241 | P31: 0
A32: 110 | B32: 0.003 | C32: =$D$4*'SBUH Model'!B32 -> 0.006 | D32: 0.064 | E32: 0.002365001173 | F32: 0.001030500798 | G32: 0 | H32: 0 | I32: 0 | J32: 0 | K32: 0.00157437622 | L32: 0.001362759478 | M32: 0.8176556868 | N32: 0.45 | O32: -1.267655687 | P32: 0
A33: 120 | B33: 0.003 | C33: =$D$4*'SBUH Model'!B33 -> 0.006 | D33: 0.07 | E33: 0.003651150749 | F33: 0.001286149576 | G33: 0 | H33: 0 | I33: 0 | J33: 0 | K33: 0.001964950741 | L33: 0.00176966348 | M33: 1.061798088 | N33: 0.45 | O33: -1.511798088 | P33: 0
A34: 130 | B34: 0.0033 | C34: =$D$4*'SBUH Model'!B34 -> 0.0066 | D34: 0.0766 | E34: 0.00533829301 | F34: 0.001687142261 | G34: 0 | H34: 0 | I34: 0 | J34: 0 | K34: 0.002577578454 | L34: 0.002271264598 | M34: 1.362758759 | N34: 0.495 | O34: -1.857758759 | P34: 0
A35: 140 | B35: 0.0034 | C35: =$D$4*'SBUH Model'!B35 -> 0.0068 | D35: 0.0834 | E35: 0.007351537493 | F35: 0.002013244483 | G35: 0 | H35: 0 | I35: 0 | J35: 0 | K35: 0.003075790182 | L35: 0.002826684318 | M35: 1.696010591 | N35: 0.51 | O35: -2.206010591 | P35: 0
A36: 150 | B36: 0.0033 | C36: =$D$4*'SBUH Model'!B36 -> 0.0066 | D36: 0.09 | E36: 0.009551382197 | F36: 0.002199844704 | G36: 0 | H36: 0 | I36: 0 | J36: 0 | K36: 0.003360873853 | L36: 0.003218332018 | M36: 1.930999211 | N36: 0.495 | O36: -2.425999211 | P36: 0
A37: 160 | B37: 0.0033 | C37: =$D$4*'SBUH Model'!B37 -> 0.0066 | D37: 0.0966 | E37: 0.01197473519 | F37: 0.002423352993 | G37: 0 | H37: 0 | I37: 0 | J37: 0 | K37: 0.00370234485 | L37: 0.003531609352 | M37: 2.118965611 | N37: 0.495 | O37: -2.613965611 | P37: 0
A38: 170 | B38: 0.0034 | C38: =$D$4*'SBUH Model'!B38 -> 0.0068 | D38: 0.1034 | E38: 0.01468776063 | F38: 0.002713025442 | G38: 0 | H38: 0 | I38: 0 | J38: 0 | K38: 0.00414489998 | L38: 0.003923622415 | M38: 2.354173449 | N38: 0.51 | O38: -2.864173449 | P38: 0
A39: 180 | B39: 0.0033 | C39: =$D$4*'SBUH Model'!B39 -> 0.0066 | D39: 0.11 | E39: 0.01751550807 | F39: 0.002827747439 | G39: 0 | H39: 0 | I39: 0 | J39: 0 | K39: 0.004320169699 | L39: 0.00423253484 | M39: 2.539520904 | N39: 0.495 | O39: -3.034520904 | P39: 0
A40: 190 | B40: 0.0033 | C40: =$D$4*'SBUH Model'!B40 -> 0.0066 | D40: 0.1166 | E40: 0.02052117586 | F40: 0.003005667791 | G40: 0 | H40: 0 | I40: 0 | J40: 0 | K40: 0.004591992459 | L40: 0.004456081079 | M40: 2.673648647 | N40: 0.495 | O40: -3.168648647 | P40: 0
A41: 200 | B41: 0.0034 | C41: =$D$4*'SBUH Model'!B41 -> 0.0068 | D41: 0.1234 | E41: 0.02379103079 | F41: 0.003269854926 | G41: 0 | H41: 0 | I41: 0 | J41: 0 | K41: 0.004995611692 | L41: 0.004793802076 | M41: 2.876281245 | N41: 0.51 | O41: -3.386281245 | P41: 0
A42: 210 | B42: 0.0033 | C42: =$D$4*'SBUH Model'!B42 -> 0.0066 | D42: 0.13 | E42: 0.02712127022 | F42: 0.003330239432 | G42: 0 | H42: 0 | I42: 0 | J42: 0 | K42: 0.005087865799 | L42: 0.005041738746 | M42: 3.025043248 | N42: 0.495 | O42: -3.520043248 | P42: 0
A43: 220 | B43: 0.0037 | C43: =$D$4*'SBUH Model'!B43 -> 0.0074 | D43: 0.1374 | E43: 0.03102588091 | F43: 0.003904610688 | G43: 0 | H43: 0 | I43: 0 | J43: 0 | K43: 0.00596537744 | L43: 0.00552662162 | M43: 3.315972972 | N43: 0.555 | O43: -3.870972972 | P43: 0
A44: 230 | B44: 0.0036 | C44: =$D$4*'SBUH Model'!B44 -> 0.0072 | D44: 0.1446 | E44: 0.03498624452 | F44: 0.003960363611 | G44: 0 | H44: 0 | I44: 0 | J44: 0 | K44: 0.006050555517 | L44: 0.006007966478 | M44: 3.604779887 | N44: 0.54 | O44: -4.144779887 | P44: 0
A45: 240 | B45: 0.0037 | C45: =$D$4*'SBUH Model'!B45 -> 0.0074 | D45: 0.152 | E45: 0.0392108139 | F45: 0.004224569377 | G45: 0 | H45: 0 | I45: 0 | J45: 0 | K45: 0.006454203215 | L45: 0.006252379366 | M45: 3.751427619 | N45: 0.555 | O45: -4.306427619 | P45: 0
A46: 250 | B46: 0.0037 | C46: =$D$4*'SBUH Model'!B46 -> 0.0074 | D46: 0.1594 | E46: 0.0435810338 | F46: 0.004370219908 | G46: 0 | H46: 0 | I46: 0 | J46: 0 | K46: 0.00667672486 | L46: 0.006565464037 | M46: 3.939278422 | N46: 0.555 | O46: -4.494278422 | P46: 0
A47: 260 | B47: 0.0036 | C47: =$D$4*'SBUH Model'!B47 -> 0.0072 | D47: 0.1666 | E47: 0.0479636149 | F47: 0.004382581095 | G47: 0 | H47: 0 | I47: 0 | J47: 0 | K47: 0.006695610007 | L47: 0.006686167433 | M47: 4.01170046 | N47: 0.54 | O47: -4.55170046 | P47: 0
A48: 270 | B48: 0.0037 | C48: =$D$4*'SBUH Model'!B48 -> 0.0074 | D48: 0.174 | E48: 0.05259328652 | F48: 0.004629671623 | G48: 0 | H48: 0 | I48: 0 | J48: 0 | K48: 0.007073109424 | L48: 0.006884359715 | M48: 4.130615829 | N48: 0.555 | O48: -4.685615829 | P48: 0
A49: 280 | B49: 0.004 | C49: =$D$4*'SBUH Model'!B49 -> 0.008 | D49: 0.182 | E49: 0.0577319218 | F49: 0.005138635281 | G49: 0 | H49: 0 | I49: 0 | J49: 0 | K49: 0.00785069279 | L49: 0.007461901107 | M49: 4.477140664 | N49: 0.6 | O49: -5.077140664 | P49: 0
A50: 290 | B50: 0.004 | C50: =$D$4*'SBUH Model'!B50 -> 0.008 | D50: 0.19 | E50: 0.06300015327 | F50: 0.005268231465 | G50: 0 | H50: 0 | I50: 0 | J50: 0 | K50: 0.00804868696 | L50: 0.007949689875 | M50: 4.769813925 | N50: 0.6 | O50: -5.369813925 | P50: 0
A51: 300 | B51: 0.004 | C51: =$D$4*'SBUH Model'!B51 -> 0.008 | D51: 0.198 | E51: 0.06838937143 | F51: 0.005389218163 | G51: 0 | H51: 0 | I51: 0 | J51: 0 | K51: 0.008233527749 | L51: 0.008141107354 | M51: 4.884664413 | N51: 0.6 | O51: -5.484664413 | P51: 0
A52: 310 | B52: 0.0043 | C52: =$D$4*'SBUH Model'!B52 -> 0.0086 | D52: 0.2066 | E52: 0.07430874411 | F52: 0.005919372683 | G52: 0 | H52: 0 | I52: 0 | J52: 0 | K52: 0.009043486043 | L52: 0.008638506896 | M52: 5.183104138 | N52: 0.645 | O52: -5.828104138 | P52: 0
A53: 320 | B53: 0.0044 | C53: =$D$4*'SBUH Model'!B53 -> 0.0088 | D53: 0.2154 | E53: 0.08049181837 | F53: 0.006183074253 | G53: 0 | H53: 0 | I53: 0 | J53: 0 | K53: 0.009446363442 | L53: 0.009244924743 | M53: 5.546954846 | N53: 0.66 | O53: -6.206954846 | P53: 0
A54: 330 | B54: 0.0043 | C54: =$D$4*'SBUH Model'!B54 -> 0.0086 | D54: 0.224 | E54: 0.08664927556 | F54: 0.006157457195 | G54: 0 | H54: 0 | I54: 0 | J54: 0 | K54: 0.009407226271 | L54: 0.009426794857 | M54: 5.656076914 | N54: 0.645 | O54: -6.301076914 | P54: 0
A55: 340 | B55: 0.0043 | C55: =$D$4*'SBUH Model'!B55 -> 0.0086 | D55: 0.2326 | E55: 0.0929128591 | F55: 0.006263583536 | G55: 0 | H55: 0 | I55: 0 | J55: 0 | K55: 0.009569363735 | L55: 0.009488295003 | M55: 5.692977002 | N55: 0.645 | O55: -6.337977002 | P55: 0
A56: 350 | B56: 0.0044 | C56: =$D$4*'SBUH Model'!B56 -> 0.0088 | D56: 0.2414 | E56: 0.0994249061 | F56: 0.006512047001 | G56: 0 | H56: 0 | I56: 0 | J56: 0 | K56: 0.009948960695 | L56: 0.009759162215 | M56: 5.855497329 | N56: 0.66 | O56: -6.515497329 | P56: 0
A57: 360 | B57: 0.0043 | C57: =$D$4*'SBUH Model'!B57 -> 0.0086 | D57: 0.25 | E57: 0.105883094 | F57: 0.00645818788 | G57: 0 | H57: 0 | I57: 6.369589034e-06 | J57: 6.369589034e-06 | K57: 0.009866675928 | L57: 0.009907818312 | M57: 5.944690987 | N57: 0.645 | O57: -6.589690987 | P57: 0
A58: 370 | B58: 0.005 | C58: =$D$4*'SBUH Model'!B58 -> 0.01 | D58: 0.26 | E58: 0.1135020566 | F58: 0.007618962582 | G58: 0 | H58: 0 | I58: 0.0001313860643 | J58: 0.0001250164753 | K58: 0.01164008172 | L58: 0.01075337883 | M58: 6.452027295 | N58: 0.75 | O58: -7.202027295 | P58: 0
A59: 380 | B59: 0.005 | C59: =$D$4*'SBUH Model'!B59 -> 0.01 | D59: 0.27 | E59: 0.1212309304 | F59: 0.007728873871 | G59: 0 | H59: 0 | I59: 0.0004133022154 | J59: 0.0002819161511 | K59: 0.01180800175 | L59: 0.01172404174 | M59: 7.034425041 | N59: 0.75 | O59: -7.784425041 | P59: 0
A60: 390 | B60: 0.005 | C60: =$D$4*'SBUH Model'!B60 -> 0.01 | D60: 0.28 | E60: 0.1290622768 | F60: 0.007831346413 | G60: 0 | H60: 0 | I60: 0.0008484081402 | J60: 0.0004351059248 | K60: 0.01196455702 | L60: 0.01188627938 | M60: 7.13176763 | N60: 0.75 | O60: -7.88176763 | P60: 0
A61: 400 | B61: 0.0053 | C61: =$D$4*'SBUH Model'!B61 -> 0.0106 | D61: 0.2906 | E61: 0.1374678405 | F61: 0.008405563703 | G61: 0 | H61: 0 | I61: 0.001472872646 | J61: 0.0006244645054 | K61: 0.01284183343 | L61: 0.01240319523 | M61: 7.441917136 | N61: 0.795 | O61: -8.236917136 | P61: 0
A62: 410 | B62: 0.0054 | C62: =$D$4*'SBUH Model'!B62 -> 0.0108 | D62: 0.3014 | E62: 0.1461349707 | F62: 0.008667130117 | G62: 0 | H62: 0 | I62: 0.002277706059 | J62: 0.0008048334139 | K62: 0.01324144879 | L62: 0.01304164111 | M62: 7.824984667 | N62: 0.81 | O62: -8.634984667 | P62: 0
A63: 420 | B63: 0.0053 | C63: =$D$4*'SBUH Model'!B63 -> 0.0106 | D63: 0.312 | E63: 0.1547358577 | F63: 0.008600886991 | G63: 0 | H63: 0 | I63: 0.003229029155 | J63: 0.0009513230954 | K63: 0.01314024401 | L63: 0.0131908464 | M63: 7.914507841 | N63: 0.795 | O63: -8.709507841 | P63: 0
A64: 430 | B64: 0.006 | C64: =$D$4*'SBUH Model'!B64 -> 0.012 | D64: 0.324 | E64: 0.1645776786 | F64: 0.009841820895 | G64: 0 | H64: 0 | I64: 0.004494045048 | J64: 0.001265015893 | K64: 0.01503611526 | L64: 0.01408817964 | M64: 8.452907781 | N64: 0.9 | O64: -9.352907781 | P64: 0
A65: 440 | B65: 0.006 | C65: =$D$4*'SBUH Model'!B65 -> 0.012 | D65: 0.336 | E65: 0.1745232445 | F65: 0.009945565934 | G65: 0 | H65: 0 | I65: 0.005953540569 | J65: 0.001459495521 | K65: 0.01519461462 | L65: 0.01511536494 | M65: 9.069218964 | N65: 0.9 | O65: -9.375 | P65: 0.5942189635
A66: 450 | B66: 0.006 | C66: =$D$4*'SBUH Model'!B66 -> 0.012 | D66: 0.348 | E66: 0.1845652504 | F66: 0.01004200592 | G66: 0 | H66: 0 | I66: 0.007602278244 | J66: 0.001648737675 | K66: 0.01534195348 | L66: 0.01526828405 | M66: 9.160970432 | N66: 0.9 | O66: -9.375 | P66: 1.280189396
A67: 460 | B67: 0.0067 | C67: =$D$4*'SBUH Model'!B67 -> 0.0134 | D67: 0.3614 | E67: 0.1958846726 | F67: 0.01131942216 | G67: 0 | H67: 0 | I67: 0.009660820967 | J67: 0.002058542724 | K67: 0.01729356164 | L67: 0.01631775756 | M67: 9.790654536 | N67: 1.005 | O67: -9.375 | P67: 2.700843932
A68: 470 | B68: 0.0066 | C68: =$D$4*'SBUH Model'!B68 -> 0.0132 | D68: 0.3746 | E68: 0.2071365069 | F68: 0.0112518343 | G68: 0 | H68: 0 | I68: 0.01190661473 | J68: 0.002245793761 | K68: 0.01719030241 | L68: 0.01724193202 | M68: 10.34515921 | N68: 0.99 | O68: -9.375 | P68: 4.661003145
A69: 480 | B69: 0.0067 | C69: =$D$4*'SBUH Model'!B69 -> 0.0134 | D69: 0.388 | E69: 0.2186542519 | F69: 0.01151774506 | G69: 0 | H69: 0 | I69: 0.01440128495 | J69: 0.002494670219 | K69: 0.01759655495 | L69: 0.01739342868 | M69: 10.43605721 | N69: 1.005 | O69: -9.375 | P69: 6.727060353
A70: 490 | B70: 0.0083 | C70: =$D$4*'SBUH Model'!B70 -> 0.0166 | D70: 0.4046 | E70: 0.2330456882 | F70: 0.01439143629 | G70: 0 | H70: 0 | I70: 0.01778256719 | J70: 0.003381282238 | K70: 0.02198691656 | L70: 0.01979173576 | M70: 11.87504145 | N70: 1.245 | O70: -9.375 | P70: 10.47210181
A71: 500 | B71: 0.0084 | C71: =$D$4*'SBUH Model'!B71 -> 0.0168 | D71: 0.4214 | E71: 0.2477382034 | F71: 0.01469251515 | G71: 0 | H71: 0 | I71: 0.02152144772 | J71: 0.003738880531 | K71: 0.02244689814 | L71: 0.02221690735 | M71: 13.33014441 | N71: 1.26 | O71: -9.375 | P71: 15.68724622
A72: 510 | B72: 0.0083 | C72: =$D$4*'SBUH Model'!B72 -> 0.0166 | D72: 0.438 | E72: 0.2623714837 | F72: 0.01463328034 | G72: 0 | H72: 0 | I72: 0.02551793362 | J72: 0.003996485905 | K72: 0.02235640052 | L72: 0.02240164933 | M72: 13.4409896 | N72: 1.245 | O72: -9.375 | P72: 20.99823582
A73: 520 | B73: 0.0117 | C73: =$D$4*'SBUH Model'!B73 -> 0.0234 | D73: 0.4614 | E73: 0.2831766462 | F73: 0.0208051625 | G73: 0 | H73: 0 | I73: 0.03164158636 | J73: 0.00612365274 | K73: 0.03178566492 | L73: 0.02707103272 | M73: 16.24261963 | N73: 1.755 | O73: -9.375 | P73: 29.62085545
A74: 530 | B74: 0.0116 | C74: =$D$4*'SBUH Model'!B74 -> 0.0232 | D74: 0.4846 | E74: 0.3039890344 | F74: 0.02081238821 | G74: 0 | H74: 0 | I74: 0.03825465141 | J74: 0.006613065052 | K74: 0.03179670421 | L74: 0.03179118457 | M74: 19.07471074 | N74: 1.74 | O74: -9.375 | P74: 41.06056619
A75: 540 | B75: 0.0117 | C75: =$D$4*'SBUH Model'!B75 -> 0.0234 | D75: 0.508 | E75: 0.3251480194 | F75: 0.02115898496 | G75: 0 | H75: 0 | I75: 0.04544559234 | J75: 0.007190940928 | K75: 0.03232622701 | L75: 0.03206146561 | M75: 19.23687937 | N75: 1.755 | O75: -9.375 | P75: 52.67744556
A76: 550 | B76: 0.0163 | C76: =$D$4*'SBUH Model'!B76 -> 0.0326 | D76: 0.5406 | E76: 0.3548743177 | F76: 0.02972629834 | G76: 0 | H76: 0 | I76: 0.05629060979 | J76: 0.01084501745 | K76: 0.04541517801 | L76: 0.03887070251 | M76: 23.32242151 | N76: 2.445 | O76: -9.375 | P76: 69.06986706
A77: 560 | B77: 0.0164 | C77: =$D$4*'SBUH Model'!B77 -> 0.0328 | D77: 0.5734 | E77: 0.3850396739 | F77: 0.0301653562 | G77: 0 | H77: 0 | I77: 0.06811852103 | J77: 0.01182791124 | K77: 0.04608596086 | L77: 0.04575056944 | M77: 27.45034166 | N77: 2.46 | O77: -9.375 | P77: 89.60520873
A78: 570 | B78: 0.0163 | C78: =$D$4*'SBUH Model'!B78 -> 0.0326 | D78: 0.606 | E78: 0.4152437166 | F78: 0.03020404268 | G78: 0 | H78: 0 | I78: 0.08072911527 | J78: 0.01261059424 | K78: 0.04614506521 | L78: 0.04611551304 | M78: 27.66930782 | N78: 2.445 | O78: -9.375 | P78: 110.3445165
A79: 580 | B79: 0.0707 | C79: =$D$4*'SBUH Model'!B79 -> 0.1414 | D79: 0.7474 | E79: 0.5482370793 | F79: 0.1329933627 | G79: 0 | H79: 0 | I79: 0.1441160086 | J79: 0.06338689333 | K79: 0.2031843041 | L79: 0.1246646846 | M79: 74.79881079 | N79: 10.605 | O79: -9.375 | P79: 186.3733273
A80: 590 | B80: 0.0706 | C80: =$D$4*'SBUH Model'!B80 -> 0.1412 | D80: 0.8886 | E80: 0.683297712 | F80: 0.1350606327 | G80: 0 | H80: 0 | I80: 0.2191399649 | J80: 0.07502395627 | K80: 0.2063426333 | L80: 0.2047634687 | M80: 122.8580812 | N80: 10.59 | O80: -9.375 | P80: 310.4464086
A81: 600 | B81: 0.0707 | C81: =$D$4*'SBUH Model'!B81 -> 0.1414 | D81: 1.03 | E81: 0.8200056893 | F81: 0.1367079773 | G81: 0.001645485577 | H81: 0.001645485577 | I81: 0.303547071 | J81: 0.08440710613 | K81: 0.2088594098 | L81: 0.2076010216 | M81: 124.5606129 | N81: 10.605 | O81: -9.375 | P81: 436.2370215
A82: 610 | B82: 0.0227 | C82: =$D$4*'SBUH Model'!B82 -> 0.0454 | D82: 1.0754 | E82: 0.8641263884 | F82: 0.0441206991 | G82: 0.003722223498 | H82: 0.002076737921 | I82: 0.3323040776 | J82: 0.02875700664 | K82: 0.06740662363 | L82: 0.1381330167 | M82: 82.87981002 | N82: 3.405 | O82: -9.375 | P82: 513.1468315
A83: 620 | B83: 0.0226 | C83: =$D$4*'SBUH Model'!B83 -> 0.0452 | D83: 1.1206 | E83: 0.9081426034 | F83: 0.04401621499 | G83: 0.006589721029 | H83: 0.002867497531 | I83: 0.3616460911 | J83: 0.0293420135 | K83: 0.06724699512 | L83: 0.06732680937 | M83: 40.39608562 | N83: 3.39 | O83: -9.375 | P83: 547.5579171
A84: 630 | B84: 0.0227 | C84: =$D$4*'SBUH Model'!B84 -> 0.0454 | D84: 1.166 | E84: 0.9524346217 | F84: 0.04429201837 | G84: 0.01025119336 | H84: 0.003661472326 | I84: 0.3917876576 | J84: 0.03014156645 | K84: 0.0676683614 | L84: 0.06745767826 | M84: 40.47460695 | N84: 3.405 | O84: -9.375 | P84: 582.0625241
A85: 640 | B85: 0.0137 | C85: =$D$4*'SBUH Model'!B85 -> 0.0274 | D85: 1.1934 | E85: 0.9792018108 | F85: 0.02676718901 | G85: 0.01283084918 | H85: 0.002579655824 | I85: 0.4102860427 | J85: 0.01849838506 | K85: 0.04089431654 | L85: 0.05428133897 | M85: =L85*($D$5*60) -> 32.56880338 | N85: =(C85/12)*O$4 -> 2.055 | O85: -9.375 | P85: 607.3113275
A86: 650 | B86: 0.0136 | C86: =$D$4*'SBUH Model'!B86 -> 0.0272 | D86: =C86+D85 -> 1.2206 | E86: =IF(D86<0.2*F$8,0,(D86-0.2*F$8)^2/(D86+0.8*F$8)) -> 1.005798404 | F86: 0.0265965932 | G86: =IF(D86<0.2*F$11,0,(D86-0.2*F$11)^2/(D86+0.8*F$11)) -> 0.01566152823 | H86: 0.002830679047 | I86: =IF(D86<0.2*F$12,0,(D86-0.2*F$12)^2/(D86+0.8*F$12)) -> 0.4288677828 | J86: 0.01858174017 | K86: =((F86/12)*SUMPRODUCT(D$8:D$10,G$8:G$10)+(H86/12)*D$11+(J86/12)*D$12)/($D$5*60) -> 0.04063368405 | L86: =MAX(0,L85+(D$5/(2*$D$16+D$5))*(K85+K86-2*L85)) -> 0.04076400029 | M86: 24.45840018 | N86: 2.04 | O86: =-MIN(O$9*D$5*60,SUM(M86,N86,P85)) -> -9.375 | P86: 624.4347276
A87: 660 | B87: 0.0137 | C87: =$D$4*'SBUH Model'!B87 -> 0.0274 | D87: 1.248 | E87: 1.032614077 | F87: =MAX(0,E87-E86) -> 0.02681567305 | G87: 0.0187804113 | H87: 0.003118883075 | I87: 0.4477980743 | J87: 0.01893029148 | K87: 0.04096838938 | L87: 0.04080103672 | M87: 24.48062203 | N87: 2.055 | O87: -9.375 | P87: =P86+SUM(M87:O87) -> 641.5953497
A88: 670 | B88: 0.01 | C88: =$D$4*'SBUH Model'!B88 -> 0.02 | D88: 1.268 | E88: 1.052201686 | F88: 0.01958760914 | G88: 0.02122389464 | H88: 0.002443483334 | I88: 0.4617456547 | J88: 0.01394758045 | K88: 0.02992551397 | L88: 0.03544695168 | M88: 21.26817101 | N88: 1.5 | O88: -9.375 | P88: 654.9885207
A89: 680 | B89: 0.01 | C89: =$D$4*'SBUH Model'!B89 -> 0.02 | D89: 1.288 | E89: 1.071800662 | F89: 0.01959897553 | G89: 0.02380636502 | H89: 0.002582470381 | I89: 0.4757995689 | J89: 0.01405391416 | K89: 0.02994287928 | L89: 0.02993419662 | M89: 17.96051797 | N89: 1.5 | O89: -9.375 | P89: 665.0740387
A90: 690 | B90: 0.01 | C90: =$D$4*'SBUH Model'!B90 -> 0.02 | D90: 1.308 | E90: 1.09141054 | F90: 0.01960987837 | G90: 0.0265261785 | H90: 0.002719813487 | I90: 0.489957039 | J90: 0.01415747005 | K90: 0.0299595364 | L90: 0.02995120784 | M90: 17.9707247 | N90: 1.5 | O90: -9.375 | P90: 675.1697634
A91: 700 | B91: 0.0093 | C91: =$D$4*'SBUH Model'!B91 -> 0.0186 | D91: 1.3266 | E91: 1.109657127 | F91: 0.01824658679 | G91: 0.02917744493 | H91: 0.002651266431 | I91: 0.5032140702 | J91: 0.01325703123 | K91: 0.02787672981 | L91: 0.02891813311 | M91: 17.35087986 | N91: 1.395 | O91: -9.375 | P91: 684.5406432
A92: 710 | B92: 0.0094 | C92: =$D$4*'SBUH Model'!B92 -> 0.0188 | D92: 1.3454 | E92: 1.128108769 | F92: 0.01845164201 | G92: 0.03197520081 | H92: 0.002797755872 | I92: 0.5167001804 | J92: 0.01348611017 | K92: 0.02819000862 | L92: 0.02803336922 | M92: 16.82002153 | N92: 1.41 | O92: -9.375 | P92: 693.3956648
A93: 720 | B93: 0.0093 | C93: =$D$4*'SBUH Model'!B93 -> 0.0186 | D93: 1.364 | E93: 1.146372557 | F93: 0.01826378786 | G93: 0.03485864488 | H93: 0.002883444069 | I93: 0.5301263933 | J93: 0.01342621292 | K93: 0.02790300923 | L93: 0.02804650892 | M93: 16.82790535 | N93: 1.395 | O93: -9.375 | P93: 702.2435701
A94: 730 | B94: 0.008 | C94: =$D$4*'SBUH Model'!B94 -> 0.016 | D94: 1.38 | E94: 1.162089826 | F94: 0.01571726945 | G94: 0.03742995117 | H94: 0.002571306295 | I94: 0.5417408322 | J94: 0.01161443893 | K94: 0.02401249499 | L94: 0.02595775211 | M94: 15.57465126 | N94: 1.2 | O94: -9.375 | P94: 709.6432214
A95: 740 | B95: 0.008 | C95: =$D$4*'SBUH Model'!B95 -> 0.016 | D95: 1.396 | E95: 1.177812898 | F95: 0.01572307178 | G95: 0.0400845248 | H95: 0.002654573625 | I95: 0.5534141189 | J95: 0.01167328667 | K95: 0.02402135966 | L95: 0.02401692733 | M95: 14.4101564 | N95: 1.2 | O95: -9.375 | P95: 715.8783778
A96: 750 | B96: 0.008 | C96: =$D$4*'SBUH Model'!B96 -> 0.016 | D96: 1.412 | E96: 1.193541595 | F96: 0.01572869731 | G96: 0.04282159367 | H96: 0.002737068875 | I96: 0.5651450767 | J96: 0.01173095782 | K96: 0.02402995422 | L96: 0.02402565694 | M96: 14.41539417 | N96: 1.2 | O96: -9.375 | P96: 722.1187719
A97: 760 | B97: 0.0073 | C97: =$D$4*'SBUH Model'!B97 -> 0.0146 | D97: 1.4266 | E97: 1.207898796 | F97: 0.01435720113 | G97: 0.04539050641 | H97: 0.002568912735 | I97: 0.5758989274 | J97: 0.01075385071 | K97: 0.02193461284 | L97: 0.02298228353 | M97: 13.78937012 | N97: 1.095 | O97: -9.375 | P97: 727.6281421
A98: 770 | B98: 0.0074 | C98: =$D$4*'SBUH Model'!B98 -> 0.0148 | D98: 1.4414 | E98: 1.222457181 | F98: 0.01455838452 | G98: 0.04806348258 | H98: 0.002672976173 | I98: 0.5868472591 | J98: 0.01094833166 | K98: 0.02224197635 | L98: 0.02208829459 | M98: 13.25297676 | N98: 1.11 | O98: -9.375 | P98: 732.6161188
A99: 780 | B99: 0.0073 | C99: =$D$4*'SBUH Model'!B99 -> 0.0146 | D99: 1.456 | E99: 1.236823158 | F99: 0.01436597717 | G99: 0.05076770697 | H99: 0.002704224396 | I99: 0.5976933334 | J99: 0.0108460743 | K99: 0.02194802068 | L99: 0.02209499851 | M99: 13.25699911 | N99: 1.095 | O99: -9.375 | P99: 737.5931179
A100: 790 | B100: 0.0067 | C100: =$D$4*'SBUH Model'!B100 -> 0.0134 | D100: 1.4694 | E100: 1.250012054 | F100: 0.01318889551 | G100: 0.05330807272 | H100: 0.00254036575 | I100: 0.6076871946 | J100: 0.009993861184 | K100: 0.02014970148 | L100: 0.02104886108 | M100: 12.62931665 | N100: 1.005 | O100: -9.375 | P100: 741.8524346
A101: 800 | B101: 0.0066 | C101: =$D$4*'SBUH Model'!B101 -> 0.0132 | D101: 1.4826 | E101: 1.263007461 | F101: 0.01299540721 | G101: 0.05586475132 | H101: 0.002556678592 | I101: 0.6175680077 | J101: 0.009880813143 | K101: 0.01985409435 | L101: 0.02000189792 | M101: 12.00113875 | N101: 0.99 | O101: -9.375 | P101: 745.4685733
A102: 810 | B102: 0.0067 | C102: =$D$4*'SBUH Model'!B102 -> 0.0134 | D102: 1.496 | E102: 1.276203098 | F102: 0.01319563688 | G102: 0.05851479928 | H102: 0.002650047965 | I102: 0.6276346012 | J102: 0.0100665935 | K102: 0.0201600008 | L102: 0.02000704758 | M102: 12.00422855 | N102: 1.005 | O102: -9.375 | P102: 749.1028019
A103: 820 | B103: 0.006 | C103: =$D$4*'SBUH Model'!B103 -> 0.012 | D103: 1.508 | E103: 1.288022867 | F103: 0.01181976968 | G103: 0.06093435148 | H103: 0.002419552199 | I103: 0.6366798294 | J103: 0.009045228187 | K103: 0.01805798145 | L103: 0.01910899112 | M103: 11.46539467 | N103: 0.9 | O103: -9.375 | P103: 752.0931965
A104: 830 | B104: 0.006 | C104: =$D$4*'SBUH Model'!B104 -> 0.012 | D104: 1.52 | E104: 1.299845207 | F104: 0.0118223394 | G104: 0.06339741239 | H104: 0.002463060912 | I104: 0.6457533243 | J104: 0.009073494904 | K104: 0.01806190742 | L104: 0.01805994444 | M104: 10.83596666 | N104: 0.9 | O104: -9.375 | P104: 754.4541632
A105: 840 | B105: 0.006 | C105: =$D$4*'SBUH Model'!B105 -> 0.012 | D105: 1.532 | E105: 1.311670061 | F105: 0.01182485456 | G105: 0.0659036863 | H105: 0.002506273909 | I105: 0.6548546822 | J105: 0.009101357933 | K105: 0.01806575002 | L105: 0.01806382872 | M105: 10.83829723 | N105: 0.9 | O105: -9.375 | P105: 756.8174604
A106: 850 | B106: 0.0057 | C106: =$D$4*'SBUH Model'!B106 -> 0.0114 | D106: 1.5434 | E106: 1.322905954 | F106: 0.01123589317 | G106: 0.06832440562 | H106: 0.002420719317 | I106: 0.6635264196 | J106: 0.008671737366 | K106: 0.0171659479 | L106: 0.01761584896 | M106: 10.56950938 | N106: 0.855 | O106: -9.375 | P106: 758.8669698
A107: 860 | B107: 0.0056 | C107: =$D$4*'SBUH Model'!B107 -> 0.0112 | D107: 1.5546 | E107: 1.333946848 | F107: 0.01104089333 | G107: 0.07074013692 | H107: 0.0024157313 | I107: 0.6720698389 | J107: 0.008543419292 | K107: 0.01686803147 | L107: 0.01701698969 | M107: 10.21019381 | N107: 0.84 | O107: -9.375 | P107: 760.5421636
A108: 870 | B108: 0.0057 | C108: =$D$4*'SBUH Model'!B108 -> 0.0114 | D108: 1.566 | E108: 1.345187016 | F108: 0.01124016866 | G108: 0.07323691299 | H108: 0.002496776075 | I108: 0.6807897396 | J108: 0.008719900699 | K108: 0.01717247989 | L108: 0.01702025568 | M108: 10.21215341 | N108: 0.855 | O108: -9.375 | P108: 762.234317
A109: 880 | B109: 0.0053 | C109: =$D$4*'SBUH Model'!B109 -> 0.0106 | D109: 1.5766 | E109: 1.355640281 | F109: 0.01045326408 | G109: 0.07559257429 | H109: 0.002355661298 | I109: 0.6889190885 | J109: 0.008129348879 | K109: 0.01597026456 | L109: 0.01657137223 | M109: 9.942823335 | N109: 0.795 | O109: -9.375 | P109: 763.5971404
A110: 890 | B110: 0.0054 | C110: =$D$4*'SBUH Model'!B110 -> 0.0108 | D110: 1.5874 | E110: 1.366292604 | F110: 0.01065232301 | G110: 0.07802626838 | H110: 0.002433694086 | I110: 0.697222732 | J110: 0.008303643568 | K110: 0.01627438237 | L110: 0.01612232347 | M110: 9.67339408 | N110: 0.81 | O110: -9.375 | P110: 764.7055344
A111: 900 | B111: 0.0053 | C111: =$D$4*'SBUH Model'!B111 -> 0.0106 | D111: 1.598 | E111: 1.376749422 | F111: 0.01045681887 | G111: 0.08044766173 | H111: 0.002421393353 | I111: 0.705392874 | J111: 0.008170142013 | K111: 0.01597569549 | L111: 0.01612503893 | M111: 9.675023358 | N111: 0.795 | O111: -9.375 | P111: 765.8005578
A112: 910 | B112: 0.0053 | C112: =$D$4*'SBUH Model'!B112 -> 0.0106 | D112: 1.6086 | E112: 1.387207954 | F112: 0.010458532 | G112: 0.0829013232 | H112: 0.00245366147 | I112: 0.7135828488 | J112: 0.008189974809 | K112: 0.01597831277 | L112: 0.01597700413 | M112: 9.586202479 | N112: 0.795 | O112: -9.375 | P112: 766.8067603
A113: 920 | B113: 0.0054 | C113: =$D$4*'SBUH Model'!B113 -> 0.0108 | D113: 1.6194 | E113: 1.397865547 | F113: 0.01065759308 | G113: 0.08543427003 | H113: 0.002532946833 | I113: 0.7219474989 | J113: 0.008364650004 | K113: 0.01628243388 | L113: 0.01613037333 | M113: 9.678223996 | N113: 0.81 | O113: -9.375 | P113: 767.9199843
A114: 930 | B114: 0.0053 | C114: =$D$4*'SBUH Model'!B114 -> 0.0106 | D114: 1.63 | E114: 1.408327446 | F114: 0.0104618982 | G114: 0.08795249732 | H114: 0.002518227288 | I114: 0.7301767806 | J114: 0.008229281716 | K114: 0.01598345558 | L114: 0.01613294473 | M114: 9.679766838 | N114: 0.795 | O114: -9.375 | P114: 769.0197511
A115: 940 | B115: 0.005 | C115: =$D$4*'SBUH Model'!B115 -> 0.01 | D115: 1.64 | E115: 1.418198649 | F115: 0.009871203617 | G115: 0.09035724346 | H115: 0.002404746141 | I115: 0.7379577802 | J115: 0.007780999595 | K115: 0.01508100553 | L115: 0.01553223055 | M115: 9.319338332 | N115: 0.75 | O115: -9.375 | P115: 769.7140894
A116: 950 | B116: 0.005 | C116: =$D$4*'SBUH Model'!B116 -> 0.01 | D116: 1.65 | E116: 1.428071274 | F116: 0.009872624219 | G116: 0.09279004377 | H116: 0.002432800311 | I116: 0.7457555982 | J116: 0.007797818078 | K116: 0.01508317589 | L116: 0.01508209071 | M116: 9.049254425 | N116: 0.75 | O116: -9.375 | P116: 770.1383439
A117: 960 | B117: 0.005 | C117: =$D$4*'SBUH Model'!B117 -> 0.01 | D117: 1.66 | E117: 1.437945295 | F117: 0.009874021446 | G117: 0.09525074311 | H117: 0.002460699334 | I117: 0.7535700443 | J117: 0.007814446074 | K117: 0.01508531054 | L117: 0.01508424322 | M117: 9.05054593 | N117: 0.75 | O117: -9.375 | P117: 770.5638898
A118: 970 | B118: 0.0047 | C118: =$D$4*'SBUH Model'!B118 -> 0.0094 | D118: 1.6694 | E118: 1.447228129 | F118: 0.009282833713 | G118: 0.09758910118 | H118: 0.002338358075 | I118: 0.7609306173 | J118: 0.007360573028 | K118: 0.01418210706 | L118: 0.0146337088 | M118: 8.780225281 | N118: 0.705 | O118: -9.375 | P118: 770.6741151
A119: 980 | B119: 0.0046 | C119: =$D$4*'SBUH Model'!B119 -> 0.0092 | D119: 1.6786 | E119: 1.456314613 | F119: 0.009086484637 | G119: 0.09990132348 | H119: 0.002312222293 | I119: 0.7681485011 | J119: 0.007217883794 | K119: 0.01388212931 | L119: 0.01403211818 | M119: 8.419270911 | N119: 0.69 | O119: -9.375 | P119: 770.408386
A120: 990 | B120: 0.0047 | C120: =$D$4*'SBUH Model'!B120 -> 0.0094 | D120: 1.688 | E120: 1.465599796 | F120: 0.009285182215 | G120: 0.1022878175 | H120: 0.002386494007 | I120: 0.775537368 | J120: 0.007388866835 | K120: 0.01418569505 | L120: 0.01403391218 | M120: 8.420347307 | N120: 0.705 | O120: -9.375 | P120: 770.1587333
A121: 1000 | B121: 0.0043 | C121: =$D$4*'SBUH Model'!B121 -> 0.0086 | D121: 1.6966 | E121: 1.474095766 | F121: 0.00849597059 | G121: 0.1044923542 | H121: 0.002204536742 | I121: 0.7823097284 | J121: 0.006772360446 | K121: 0.01297995507 | L121: 0.01358282506 | M121: 8.149695036 | N121: 0.645 | O121: -9.375 | P121: 769.5784283
A122: 1010 | B122: 0.0044 | C122: =$D$4*'SBUH Model'!B122 -> 0.0088 | D122: 1.7054 | E122: 1.482790309 | F122: 0.008694542494 | G122: 0.1067689759 | H122: 0.002276621636 | I122: 0.7892516638 | J122: 0.006941935339 | K122: 0.01328332881 | L122: 0.01313164194 | M122: 7.878985163 | N122: 0.66 | O122: -9.375 | P122: 768.7424135
A123: 1020 | B123: 0.0043 | C123: =$D$4*'SBUH Model'!B123 -> 0.0086 | D123: 1.714 | E123: 1.491288203 | F123: 0.008497894505 | G123: 0.109014103 | H123: 0.002245127185 | I123: 0.7960475179 | J123: 0.006795854167 | K123: 0.01298289438 | L123: 0.0131331116 | M123: 7.879866958 | N123: 0.645 | O123: -9.375 | P123: 767.8922805
A124: 1030 | B124: 0.0043 | C124: =$D$4*'SBUH Model'!B124 -> 0.0086 | D124: 1.7226 | E124: 1.499787029 | F124: 0.008498825756 | G124: 0.1112791496 | H124: 0.00226504658 | I124: 0.802854817 | J124: 0.006807299074 | K124: 0.01298431713 | L124: 0.01298360576 | M124: 7.790163453 | N124: 0.645 | O124: -9.375 | P124: 766.9524439
A125: 1040 | B125: 0.0044 | C125: =$D$4*'SBUH Model'!B125 -> 0.0088 | D125: 1.7314 | E125: 1.508484453 | F125: 0.008697423627 | G125: 0.1136173938 | H125: 0.002338244182 | I125: 0.8098321594 | J125: 0.006977342358 | K125: 0.01328773054 | L125: 0.01313602383 | M125: 7.881614301 | N125: 0.66 | O125: -9.375 | P125: 766.1190582
A126: 1050 | B126: 0.0043 | C126: =$D$4*'SBUH Model'!B126 -> 0.0086 | D126: 1.74 | E126: 1.516985124 | F126: 0.008500671367 | G126: 0.115922457 | H126: 0.00230506323 | I126: 0.8166622838 | J126: 0.006830124455 | K126: 0.01298713681 | L126: 0.01313743368 | M126: 7.882460206 | N126: 0.645 | O126: -9.375 | P126: 765.2715184
A127: 1060 | B127: 0.004 | C127: =$D$4*'SBUH Model'!B127 -> 0.008 | D127: 1.748 | E127: 1.524893528 | F127: 0.007908403787 | G127: 0.1180843349 | H127: 0.002161877863 | I127: 0.8230258743 | J127: 0.006363590453 | K127: 0.01208228356 | L127: 0.01253471019 | M127: 7.520826112 | N127: 0.6 | O127: -9.375 | P127: 764.0173445
A128: 1070 | B128: 0.004 | C128: =$D$4*'SBUH Model'!B128 -> 0.008 | D128: 1.756 | E128: 1.532802695 | F128: 0.007909167381 | G128: 0.1202631327 | H128: 0.002178797793 | I128: 0.8293990038 | J128: 0.006373129544 | K128: 0.01208345017 | L128: 0.01208286686 | M128: 7.249720118 | N128: 0.6 | O128: -9.375 | P128: 762.4920647
A129: 1080 | B129: 0.004 | C129: =$D$4*'SBUH Model'!B129 -> 0.008 | D129: 1.764 | E129: 1.540712617 | F129: 0.007909921466 | G129: 0.122458777 | H129: 0.002195644273 | I129: 0.8357815893 | J129: 0.006382585468 | K129: 0.01208460224 | L129: 0.0120840262 | M129: 7.250415721 | N129: 0.6 | O129: -9.375 | P129: 760.9674804
A130: 1090 | B130: 0.0037 | C130: =$D$4*'SBUH Model'!B130 -> 0.0074 | D130: 1.7714 | E130: 1.548029957 | F130: 0.007317340607 | G130: 0.1245046832 | H130: 0.002045906189 | I130: 0.8416938282 | J130: 0.005912238913 | K130: 0.01117927037 | L130: 0.01163193631 | M130: 6.979161783 | N130: 0.555 | O130: -9.375 | P130: 759.1266422
A131: 1100 | B131: 0.0036 | C131: =$D$4*'SBUH Model'!B131 -> 0.0072 | D131: 1.7786 | E131: 1.555150136 | F131: 0.007120179326 | G131: 0.1265090151 | H131: 0.002004331953 | I131: 0.8474539138 | J131: 0.005760085633 | K131: 0.01087805175 | L131: 0.01102866106 | M131: 6.617196636 | N131: 0.54 | O131: -9.375 | P131: 756.9088388
A132: 1110 | B132: 0.0037 | C132: =$D$4*'SBUH Model'!B132 -> 0.0074 | D132: 1.786 | E132: 1.562468713 | F132: 0.007318576549 | G132: 0.1285830687 | H132: 0.002074053601 | I132: 0.8533817887 | J132: 0.005927874877 | K132: 0.01118115862 | L132: 0.01102960518 | M132: 6.61776311 | N132: 0.555 | O132: -9.375 | P132: 754.7066019
A133: 1120 | B133: 0.004 | C133: =$D$4*'SBUH Model'!B133 -> 0.008 | D133: 1.794 | E133: 1.57038138 | F133: 0.007912667242 | G133: 0.1308412403 | H133: 0.00225817163 | I133: 0.8597991095 | J133: 0.006417320773 | K133: 0.01208879718 | L133: 0.0116349779 | M133: 6.980986738 | N133: 0.6 | O133: -9.375 | P133: 752.9125886
A134: 1130 | B134: 0.004 | C134: =$D$4*'SBUH Model'!B134 -> 0.008 | D134: 1.802 | E134: 1.578294758 | F134: 0.007913378252 | G134: 0.1331159153 | H134: 0.002274674972 | I134: 0.8662255041 | J134: 0.006426394584 | K134: 0.01208988344 | L134: 0.01208934031 | M134: 7.253604185 | N134: 0.6 | O134: -9.375 | P134: 751.3911928
A135: 1140 | B135: 0.004 | C135: =$D$4*'SBUH Model'!B135 -> 0.008 | D135: 1.81 | E135: 1.586208839 | F135: 0.007914080615 | G135: 0.1354070226 | H135: 0.002291107265 | I135: 0.8726608946 | J135: 0.006435390586 | K135: 0.0120909565 | L135: 0.01209041997 | M135: 7.254251981 | N135: 0.6 | O135: -9.375 | P135: 749.8704448
A136: 1150 | B136: 0.0037 | C136: =$D$4*'SBUH Model'!B136 -> 0.0074 | D136: 1.8174 | E136: 1.593529982 | F136: 0.007321142504 | G136: 0.1375408653 | H136: 0.002133842768 | I136: 0.8786215734 | J136: 0.005960678758 | K136: 0.01118507882 | L136: 0.01163801766 | M136: 6.982810596 | N136: 0.555 | O136: -9.375 | P136: 748.0332554
A137: 1160 | B137: 0.0036 | C137: =$D$4*'SBUH Model'!B137 -> 0.0072 | D137: 1.8246 | E137: 1.600653819 | F137: 0.007123837308 | G137: 0.1396304208 | H137: 0.002089555454 | I137: 0.8844284202 | J137: 0.005806846838 | K137: 0.01088364033 | L137: 0.01103435958 | M137: 6.620615747 | N137: 0.54 | O137: -9.375 | P137: 745.8188711
A138: 1170 | B138: 0.0037 | C138: =$D$4*'SBUH Model'!B138 -> 0.0074 | D138: 1.832 | E138: 1.607976113 | F138: 0.007322294465 | G138: 0.1417917213 | H138: 0.002161300482 | I138: 0.8904039795 | J138: 0.005975559265 | K138: 0.01118683877 | L138: 0.01103523955 | M138: 6.621143729 | N138: 0.555 | O138: -9.375 | P138: 743.6200149
A139: 1180 | B139: 0.0033 | C139: =$D$4*'SBUH Model'!B139 -> 0.0066 | D139: 1.8386 | E139: 1.614507293 | F139: 0.006531179746 | G139: 0.1437310416 | H139: 0.001939320368 | I139: 0.8957398231 | J139: 0.005335843615 | K139: 0.009978191279 | L139: 0.01058251502 | M139: 6.349509013 | N139: 0.495 | O139: -9.375 | P139: 741.0895239
A140: 1190 | B140: 0.0034 | C140: =$D$4*'SBUH Model'!B140 -> 0.0068 | D140: 1.8454 | E140: 1.62123686 | F140: 0.006729567303 | G140: 0.1457405989 | H140: 0.002009557244 | I140: 0.9012435171 | J140: 0.00550369393 | K140: 0.01028128338 | L140: 0.01012973733 | M140: 6.077842397 | N140: 0.51 | O140: -9.375 | P140: 738.3023663
A141: 1200 | B141: 0.0033 | C141: =$D$4*'SBUH Model'!B141 -> 0.0066 | D141: 1.852 | E141: 1.627768954 | F141: 0.006532093403 | G141: 0.1477021441 | H141: 0.001961545231 | I141: 0.9065912725 | J141: 0.005347755463 | K141: 0.009979587143 | L141: 0.01013043526 | M141: 6.078261157 | N141: 0.495 | O141: -9.375 | P141: 735.5006274
A142: 1210 | B142: 0.0033 | C142: =$D$4*'SBUH Model'!B142 -> 0.0066 | D142: 1.8586 | E142: 1.634301491 | F142: 0.006532536739 | G142: 0.1496745775 | H142: 0.001972433417 | I142: 0.9119448332 | J142: 0.005353560701 | K142: 0.009980264463 | L142: 0.009979925803 | M142: 5.987955482 | N142: 0.495 | O142: -9.375 | P142: 732.6085829
A143: 1220 | B143: 0.0034 | C143: =$D$4*'SBUH Model'!B143 -> 0.0068 | D143: 1.8654 | E143: 1.641032442 | F143: 0.006730951519 | G143: 0.1517181293 | H143: 0.002043551776 | I143: 0.9174666523 | J143: 0.005521819045 | K143: 0.01028339815 | L143: 0.01013183131 | M143: 6.079098785 | N143: 0.51 | O143: -9.375 | P143: 729.8226817
A144: 1230 | B144: 0.0033 | C144: =$D$4*'SBUH Model'!B144 -> 0.0066 | D144: 1.872 | E144: 1.647565866 | F144: 0.006533423594 | G144: 0.1537125514 | H144: 0.001994422127 | I144: 0.9228318759 | J144: 0.005365223593 | K144: 0.00998161938 | L144: 0.01013250877 | M144: 6.07950526 | N144: 0.495 | O144: -9.375 | P144: 727.022187
A145: 1240 | B145: 0.0033 | C145: =$D$4*'SBUH Model'!B145 -> 0.0066 | D145: 1.8786 | E145: 1.65409972 | F145: 0.006533853989 | G145: 0.1557177463 | H145: 0.002005194825 | I145: 0.9282027838 | J145: 0.005370907924 | K145: 0.009982276928 | L145: 0.009981948154 | M145: 5.989168893 | N145: 0.495 | O145: -9.375 | P145: 724.1313559
A146: 1250 | B146: 0.0034 | C146: =$D$4*'SBUH Model'!B146 -> 0.0068 | D146: 1.8854 | E146: 1.660832015 | F146: 0.006732295326 | G146: 0.157794932 | H146: 0.002077185732 | I146: 0.9337423504 | J146: 0.00553956666 | K146: 0.01028545119 | L146: 0.01013386406 | M146: 6.080318436 | N146: 0.51 | O146: -9.375 | P146: 721.3466743
A147: 1260 | B147: 0.0033 | C147: =$D$4*'SBUH Model'!B147 -> 0.0066 | D147: 1.892 | E147: 1.66736673 | F147: 0.006534715081 | G147: 0.1598218827 | H147: 0.002026950716 | I147: 0.9391246792 | J147: 0.005382328749 | K147: 0.009983592484 | L147: 0.01013452184 | M147: 6.080713103 | N147: 0.495 | O147: -9.375 | P147: 718.5473874
A148: 1270 | B148: 0.0033 | C148: =$D$4*'SBUH Model'!B148 -> 0.0066 | D148: 1.8986 | E148: 1.673901863 | F148: 0.006535133033 | G148: 0.1618594923 | H148: 0.002037609552 | I148: 0.9445125747 | J148: 0.005387895508 | K148: 0.009984231022 | L148: 0.009983911753 | M148: 5.990347052 | N148: 0.495 | O148: -9.375 | P148: 715.6577345
A149: 1280 | B149: 0.0034 | C149: =$D$4*'SBUH Model'!B149 -> 0.0068 | D149: 1.9054 | E149: 1.680635463 | F149: 0.006733600283 | G149: 0.1639699565 | H149: 0.002110464196 | I149: 0.9500695219 | J149: 0.005556947184 | K149: 0.01028744488 | L149: 0.01013583795 | M149: =L149*($D$5*60) -> 6.08150277 | N149: =(C149/12)*O$4 -> 0.51 | O149: -9.375 | P149: 712.8742372
A150: 1290 | B150: 0.0033 | C150: =$D$4*'SBUH Model'!B150 -> 0.0066 | D150: =C150+D149 -> 1.912 | E150: =IF(D150<0.2*F$8,0,(D150-0.2*F$8)^2/(D150+0.8*F$8)) -> 1.687171433 | F150: 0.006535969349 | G150: =IF(D150<0.2*F$11,0,(D150-0.2*F$11)^2/(D150+0.8*F$11)) -> 0.1660290924 | H150: 0.0020591359 | I150: =IF(D150<0.2*F$12,0,(D150-0.2*F$12)^2/(D150+0.8*F$12)) -> 0.9554686028 | J150: 0.00539908092 | K150: =((F150/12)*SUMPRODUCT(D$8:D$10,G$8:G$10)+(H150/12)*D$11+(J150/12)*D$12)/($D$5*60) -> 0.009985508727 | L150: =MAX(0,L149+(D$5/(2*$D$16+D$5))*(K149+K150-2*L149)) -> 0.0101364768 | M150: 6.081886081 | N150: 0.495 | O150: =-MIN(O$9*D$5*60,SUM(M150,N150,P149)) -> -9.375 | P150: 710.0761233
A151: 1300 | B151: 0.003 | C151: =$D$4*'SBUH Model'!B151 -> 0.006 | D151: 1.918 | E151: 1.693113575 | F151: =MAX(0,E151-E150) -> 0.005942142719 | G151: 0.167910187 | H151: 0.001881094679 | I151: 0.9603815906 | J151: 0.004912987786 | K151: 0.009078273599 | L151: 0.009531891163 | M151: 5.719134698 | N151: 0.45 | O151: -9.375 | P151: =P150+SUM(M151:O151) -> 706.870258
A152: 1310 | B152: 0.003 | C152: =$D$4*'SBUH Model'!B152 -> 0.006 | D152: 1.924 | E152: 1.699056051 | F152: 0.005942475349 | G152: 0.1697999703 | H152: 0.001889783275 | I152: 0.9652990566 | J152: 0.004917466057 | K152: 0.009078781783 | L152: 0.009078527691 | M152: 5.447116615 | N152: 0.45 | O152: -9.375 | P152: 703.3923746
A153: 1320 | B153: 0.003 | C153: =$D$4*'SBUH Model'!B153 -> 0.006 | D153: 1.93 | E153: 1.704998856 | F153: 0.005942805119 | G153: 0.1716984147 | H153: 0.001898444407 | I153: 0.9702209734 | J153: 0.00492191671 | K153: 0.009079285599 | L153: 0.009079033691 | M153: 5.447420215 | N153: 0.45 | O153: -9.375 | P153: 699.9147948
A154: 1330 | B154: 0.003 | C154: =$D$4*'SBUH Model'!B154 -> 0.006 | D154: 1.936 | E154: 1.710941988 | F154: 0.005943132061 | G154: 0.1736054929 | H154: 0.001907078192 | I154: 0.9751473133 | J154: 0.004926339973 | K154: 0.009079785094 | L154: 0.009079535346 | M154: 5.447721208 | N154: 0.45 | O154: -9.375 | P154: 696.437516
A155: 1340 | B155: 0.003 | C155: =$D$4*'SBUH Model'!B155 -> 0.006 | D155: 1.942 | E155: 1.716885444 | F155: 0.005943456208 | G155: 0.1755211777 | H155: 0.001915684744 | I155: 0.9800780494 | J155: 0.004930736069 | K155: 0.009080280318 | L155: 0.009080032706 | M155: 5.448019624 | N155: 0.45 | O155: -9.375 | P155: 692.9605357
A156: 1350 | B156: 0.003 | C156: =$D$4*'SBUH Model'!B156 -> 0.006 | D156: 1.948 | E156: 1.722829222 | F156: 0.005943777592 | G156: 0.1774454418 | H156: 0.001924264178 | I156: 0.9850131546 | J156: 0.00493510522 | K156: 0.00908077132 | L156: 0.009080525819 | M156: 5.448315492 | N156: 0.45 | O156: -9.375 | P156: 689.4838512
A157: 1360 | B157: 0.003 | C157: =$D$4*'SBUH Model'!B157 -> 0.006 | D157: 1.954 | E157: 1.728773318 | F157: 0.005944096243 | G157: 0.1793782584 | H157: 0.001932816607 | I157: 0.9899526023 | J157: 0.004939447647 | K157: 0.009081258149 | L157: 0.009081014735 | M157: 5.448608841 | N157: 0.45 | O157: -9.375 | P157: 686.00746
A158: 1370 | B158: 0.003 | C158: =$D$4*'SBUH Model'!B158 -> 0.006 | D158: 1.96 | E158: 1.73471773 | F158: 0.005944412192 | G158: 0.1813196006 | H158: 0.001941342146 | I158: 0.9948963658 | J158: 0.004943763567 | K158: 0.009081740849 | L158: 0.009081499499 | M158: 5.448899699 | N158: 0.45 | O158: -9.375 | P158: 682.5313597
A159: 1380 | B159: 0.003 | C159: =$D$4*'SBUH Model'!B159 -> 0.006 | D159: 1.966 | E159: 1.740662456 | F159: 0.005944725471 | G159: 0.1832694415 | H159: 0.001949840906 | I159: 0.999844419 | J159: 0.004948053194 | K159: 0.00908221947 | L159: 0.00908198016 | M159: 5.449188096 | N159: 0.45 | O159: -9.375 | P159: 679.0555478
A160: 1390 | B160: 0.003 | C160: =$D$4*'SBUH Model'!B160 -> 0.006 | D160: 1.972 | E160: 1.746607492 | F160: 0.005945036109 | G160: 0.1852277545 | H160: 0.001958313 | I160: 1.004796736 | J160: 0.004952316743 | K160: 0.009082694056 | L160: 0.009082456763 | M160: 5.449474058 | N160: 0.45 | O160: -9.375 | P160: 675.5800218
A161: 1400 | B161: 0.003 | C161: =$D$4*'SBUH Model'!B161 -> 0.006 | D161: 1.978 | E161: 1.752552836 | F161: 0.005945344136 | G161: 0.187194513 | H161: 0.001966758538 | I161: 1.00975329 | J161: 0.004956554424 | K161: 0.009083164652 | L161: 0.009082929354 | M161: 5.449757612 | N161: 0.45 | O161: -9.375 | P161: 672.1047795
A162: 1410 | B162: 0.003 | C162: =$D$4*'SBUH Model'!B162 -> 0.006 | D162: 1.984 | E162: 1.758498486 | F162: 0.00594564958 | G162: 0.1891696907 | H162: 0.001975177633 | I162: 1.014714057 | J162: 0.004960766445 | K162: 0.009083631303 | L162: 0.009083397977 | M162: 5.450038786 | N162: 0.45 | O162: -9.375 | P162: 668.6298182
A163: 1420 | B163: 0.0027 | C163: =$D$4*'SBUH Model'!B163 -> 0.0054 | D163: 1.9894 | E163: 1.763849829 | F163: 0.005351343666 | G163: 0.1909545271 | H163: 0.001784836428 | I163: 1.019182327 | J163: 0.004468270039 | K163: 0.008175663935 | L163: 0.008629647619 | M163: 5.177788571 | N163: 0.405 | O163: -9.375 | P163: 664.8376068
A164: 1430 | B164: 0.0026 | C164: =$D$4*'SBUH Model'!B164 -> 0.0052 | D164: 1.9946 | E164: 1.769003205 | F164: 0.005153375913 | G164: 0.1926796657 | H164: 0.001725138648 | I164: 1.023488293 | J164: 0.004305966416 | K164: 0.007873213201 | L164: 0.008024438568 | M164: 4.814663141 | N164: 0.39 | O164: -9.375 | P164: 660.66727
A165: 1440 | B165: 0.0027 | C165: =$D$4*'SBUH Model'!B165 -> 0.0054 | D165: 2 | E165: 1.774355025 | F165: 0.005351819924 | G165: 0.1944777911 | H165: 0.001798125374 | I165: 1.027963166 | J165: 0.004474873257 | K165: 0.00817639155 | L165: 0.008024802375 | M165: 4.814881425 | N165: 0.405 | O165: -9.375 | P165: 656.5121514
A166: 1450 | B166: 0 | C166: =$D$4*'SBUH Model'!B166 -> 0 | D166: 2 | E166: 1.774355025 | F166: 0 | G166: 0.1944777911 | H166: 0 | I166: 1.027963166 | J166: 0 | K166: 0 | L166: 0.004088195775 | M166: 2.452917465 | N166: 0 | O166: -9.375 | P166: 649.5900688
A167: 1460 | B167: 0 | C167: =$D$4*'SBUH Model'!B167 -> 0 | D167: 2 | E167: 1.774355025 | F167: 0 | G167: 0.1944777911 | H167: 0 | I167: 1.027963166 | J167: 0 | K167: 0 | L167: 0 | M167: 0 | N167: 0 | O167: -9.375 | P167: 640.2150688
A168: =A167+10 -> 1470 | B168: 0 | C168: =$D$4*'SBUH Model'!B168 -> 0 | D168: 2 | E168: 1.774355025 | F168: 0 | G168: 0.1944777911 | H168: 0 | I168: 1.027963166 | J168: 0 | K168: 0 | L168: 0 | M168: 0 | N168: 0 | O168: -9.375 | P168: 630.8400688
A169: =A168+10 -> 1480 | B169: 0 | C169: =$D$4*'SBUH Model'!B169 -> 0 | D169: 2 | E169: 1.774355025 | F169: 0 | G169: 0.1944777911 | H169: 0 | I169: 1.027963166 | J169: 0 | K169: 0 | L169: 0 | M169: 0 | N169: 0 | O169: -9.375 | P169: 621.4650688
A170: =A169+10 -> 1490 | B170: 0 | C170: =$D$4*'SBUH Model'!B170 -> 0 | D170: 2 | E170: 1.774355025 | F170: 0 | G170: 0.1944777911 | H170: 0 | I170: 1.027963166 | J170: 0 | K170: 0 | L170: 0 | M170: 0 | N170: 0 | O170: -9.375 | P170: 612.0900688
A171: 1500 | B171: 0 | C171: =$D$4*'SBUH Model'!B171 -> 0 | D171: 2 | E171: 1.774355025 | F171: 0 | G171: 0.1944777911 | H171: 0 | I171: 1.027963166 | J171: 0 | K171: 0 | L171: 0 | M171: 0 | N171: 0 | O171: -9.375 | P171: 602.7150688
A172: 1510 | B172: 0 | C172: =$D$4*'SBUH Model'!B172 -> 0 | D172: 2 | E172: 1.774355025 | F172: 0 | G172: 0.1944777911 | H172: 0 | I172: 1.027963166 | J172: 0 | K172: 0 | L172: 0 | M172: 0 | N172: 0 | O172: -9.375 | P172: 593.3400688
A173: 1520 | B173: 0 | C173: =$D$4*'SBUH Model'!B173 -> 0 | D173: 2 | E173: 1.774355025 | F173: 0 | G173: 0.1944777911 | H173: 0 | I173: 1.027963166 | J173: 0 | K173: 0 | L173: 0 | M173: 0 | N173: 0 | O173: -9.375 | P173: 583.9650688
A174: 1530 | B174: 0 | C174: =$D$4*'SBUH Model'!B174 -> 0 | D174: 2 | E174: 1.774355025 | F174: 0 | G174: 0.1944777911 | H174: 0 | I174: 1.027963166 | J174: 0 | K174: 0 | L174: 0 | M174: 0 | N174: 0 | O174: -9.375 | P174: 574.5900688
A175: 1540 | B175: 0 | C175: =$D$4*'SBUH Model'!B175 -> 0 | D175: 2 | E175: 1.774355025 | F175: 0 | G175: 0.1944777911 | H175: 0 | I175: 1.027963166 | J175: 0 | K175: 0 | L175: 0 | M175: 0 | N175: 0 | O175: -9.375 | P175: 565.2150688
A176: 1550 | B176: 0 | C176: =$D$4*'SBUH Model'!B176 -> 0 | D176: 2 | E176: 1.774355025 | F176: 0 | G176: 0.1944777911 | H176: 0 | I176: 1.027963166 | J176: 0 | K176: 0 | L176: 0 | M176: 0 | N176: 0 | O176: -9.375 | P176: 555.8400688
A177: 1560 | B177: 0 | C177: =$D$4*'SBUH Model'!B177 -> 0 | D177: 2 | E177: 1.774355025 | F177: 0 | G177: 0.1944777911 | H177: 0 | I177: 1.027963166 | J177: 0 | K177: 0 | L177: 0 | M177: 0 | N177: 0 | O177: -9.375 | P177: 546.4650688
A178: 1570 | B178: 0 | C178: =$D$4*'SBUH Model'!B178 -> 0 | D178: 2 | E178: 1.774355025 | F178: 0 | G178: 0.1944777911 | H178: 0 | I178: 1.027963166 | J178: 0 | K178: 0 | L178: 0 | M178: 0 | N178: 0 | O178: -9.375 | P178: 537.0900688
A179: 1580 | B179: 0 | C179: =$D$4*'SBUH Model'!B179 -> 0 | D179: 2 | E179: 1.774355025 | F179: 0 | G179: 0.1944777911 | H179: 0 | I179: 1.027963166 | J179: 0 | K179: 0 | L179: 0 | M179: 0 | N179: 0 | O179: -9.375 | P179: 527.7150688
A180: 1590 | B180: 0 | C180: =$D$4*'SBUH Model'!B180 -> 0 | D180: 2 | E180: 1.774355025 | F180: 0 | G180: 0.1944777911 | H180: 0 | I180: 1.027963166 | J180: 0 | K180: 0 | L180: 0 | M180: 0 | N180: 0 | O180: -9.375 | P180: 518.3400688
A181: 1600 | B181: 0 | C181: =$D$4*'SBUH Model'!B181 -> 0 | D181: 2 | E181: 1.774355025 | F181: 0 | G181: 0.1944777911 | H181: 0 | I181: 1.027963166 | J181: 0 | K181: 0 | L181: 0 | M181: 0 | N181: 0 | O181: -9.375 | P181: 508.9650688
A182: 1610 | B182: 0 | C182: =$D$4*'SBUH Model'!B182 -> 0 | D182: 2 | E182: 1.774355025 | F182: 0 | G182: 0.1944777911 | H182: 0 | I182: 1.027963166 | J182: 0 | K182: 0 | L182: 0 | M182: 0 | N182: 0 | O182: -9.375 | P182: 499.5900688
A183: 1620 | B183: 0 | C183: =$D$4*'SBUH Model'!B183 -> 0 | D183: 2 | E183: 1.774355025 | F183: 0 | G183: 0.1944777911 | H183: 0 | I183: 1.027963166 | J183: 0 | K183: 0 | L183: 0 | M183: 0 | N183: 0 | O183: -9.375 | P183: 490.2150688
A184: 1630 | B184: 0 | C184: =$D$4*'SBUH Model'!B184 -> 0 | D184: 2 | E184: 1.774355025 | F184: 0 | G184: 0.1944777911 | H184: 0 | I184: 1.027963166 | J184: 0 | K184: 0 | L184: 0 | M184: 0 | N184: 0 | O184: -9.375 | P184: 480.8400688
A185: 1640 | B185: 0 | C185: =$D$4*'SBUH Model'!B185 -> 0 | D185: 2 | E185: 1.774355025 | F185: 0 | G185: 0.1944777911 | H185: 0 | I185: 1.027963166 | J185: 0 | K185: 0 | L185: 0 | M185: 0 | N185: 0 | O185: -9.375 | P185: 471.4650688
A186: 1650 | B186: 0 | C186: =$D$4*'SBUH Model'!B186 -> 0 | D186: 2 | E186: 1.774355025 | F186: 0 | G186: 0.1944777911 | H186: 0 | I186: 1.027963166 | J186: 0 | K186: 0 | L186: 0 | M186: 0 | N186: 0 | O186: -9.375 | P186: 462.0900688
A187: 1660 | B187: 0 | C187: =$D$4*'SBUH Model'!B187 -> 0 | D187: 2 | E187: 1.774355025 | F187: 0 | G187: 0.1944777911 | H187: 0 | I187: 1.027963166 | J187: 0 | K187: 0 | L187: 0 | M187: 0 | N187: 0 | O187: -9.375 | P187: 452.7150688
A188: 1670 | B188: 0 | C188: =$D$4*'SBUH Model'!B188 -> 0 | D188: 2 | E188: 1.774355025 | F188: 0 | G188: 0.1944777911 | H188: 0 | I188: 1.027963166 | J188: 0 | K188: 0 | L188: 0 | M188: 0 | N188: 0 | O188: -9.375 | P188: 443.3400688
A189: 1680 | B189: 0 | C189: =$D$4*'SBUH Model'!B189 -> 0 | D189: 2 | E189: 1.774355025 | F189: 0 | G189: 0.1944777911 | H189: 0 | I189: 1.027963166 | J189: 0 | K189: 0 | L189: 0 | M189: 0 | N189: 0 | O189: -9.375 | P189: 433.9650688
A190: 1690 | B190: 0 | C190: =$D$4*'SBUH Model'!B190 -> 0 | D190: 2 | E190: 1.774355025 | F190: 0 | G190: 0.1944777911 | H190: 0 | I190: 1.027963166 | J190: 0 | K190: 0 | L190: 0 | M190: 0 | N190: 0 | O190: -9.375 | P190: 424.5900688
A191: 1700 | B191: 0 | C191: =$D$4*'SBUH Model'!B191 -> 0 | D191: 2 | E191: 1.774355025 | F191: 0 | G191: 0.1944777911 | H191: 0 | I191: 1.027963166 | J191: 0 | K191: 0 | L191: 0 | M191: 0 | N191: 0 | O191: -9.375 | P191: 415.2150688
A192: 1710 | B192: 0 | C192: =$D$4*'SBUH Model'!B192 -> 0 | D192: 2 | E192: 1.774355025 | F192: 0 | G192: 0.1944777911 | H192: 0 | I192: 1.027963166 | J192: 0 | K192: 0 | L192: 0 | M192: 0 | N192: 0 | O192: -9.375 | P192: 405.8400688
A193: 1720 | B193: 0 | C193: =$D$4*'SBUH Model'!B193 -> 0 | D193: 2 | E193: 1.774355025 | F193: 0 | G193: 0.1944777911 | H193: 0 | I193: 1.027963166 | J193: 0 | K193: 0 | L193: 0 | M193: 0 | N193: 0 | O193: -9.375 | P193: 396.4650688
A194: 1730 | B194: 0 | C194: =$D$4*'SBUH Model'!B194 -> 0 | D194: 2 | E194: 1.774355025 | F194: 0 | G194: 0.1944777911 | H194: 0 | I194: 1.027963166 | J194: 0 | K194: 0 | L194: 0 | M194: 0 | N194: 0 | O194: -9.375 | P194: 387.0900688
A195: 1740 | B195: 0 | C195: =$D$4*'SBUH Model'!B195 -> 0 | D195: 2 | E195: 1.774355025 | F195: 0 | G195: 0.1944777911 | H195: 0 | I195: 1.027963166 | J195: 0 | K195: 0 | L195: 0 | M195: 0 | N195: 0 | O195: -9.375 | P195: 377.7150688
A196: 1750 | B196: 0 | C196: =$D$4*'SBUH Model'!B196 -> 0 | D196: 2 | E196: 1.774355025 | F196: 0 | G196: 0.1944777911 | H196: 0 | I196: 1.027963166 | J196: 0 | K196: 0 | L196: 0 | M196: 0 | N196: 0 | O196: -9.375 | P196: 368.3400688
A197: 1760 | B197: 0 | C197: =$D$4*'SBUH Model'!B197 -> 0 | D197: 2 | E197: 1.774355025 | F197: 0 | G197: 0.1944777911 | H197: 0 | I197: 1.027963166 | J197: 0 | K197: 0 | L197: 0 | M197: 0 | N197: 0 | O197: -9.375 | P197: 358.9650688
A198: 1770 | B198: 0 | C198: =$D$4*'SBUH Model'!B198 -> 0 | D198: 2 | E198: 1.774355025 | F198: 0 | G198: 0.1944777911 | H198: 0 | I198: 1.027963166 | J198: 0 | K198: 0 | L198: 0 | M198: 0 | N198: 0 | O198: -9.375 | P198: 349.5900688
A199: 1780 | B199: 0 | C199: =$D$4*'SBUH Model'!B199 -> 0 | D199: 2 | E199: 1.774355025 | F199: 0 | G199: 0.1944777911 | H199: 0 | I199: 1.027963166 | J199: 0 | K199: 0 | L199: 0 | M199: 0 | N199: 0 | O199: -9.375 | P199: 340.2150688
A200: 1790 | B200: 0 | C200: =$D$4*'SBUH Model'!B200 -> 0 | D200: 2 | E200: 1.774355025 | F200: 0 | G200: 0.1944777911 | H200: 0 | I200: 1.027963166 | J200: 0 | K200: 0 | L200: 0 | M200: 0 | N200: 0 | O200: -9.375 | P200: 330.8400688
A201: 1800 | B201: 0 | C201: =$D$4*'SBUH Model'!B201 -> 0 | D201: 2 | E201: 1.774355025 | F201: 0 | G201: 0.1944777911 | H201: 0 | I201: 1.027963166 | J201: 0 | K201: 0 | L201: 0 | M201: 0 | N201: 0 | O201: -9.375 | P201: 321.4650688
A202: 1810 | B202: 0 | C202: =$D$4*'SBUH Model'!B202 -> 0 | D202: 2 | E202: 1.774355025 | F202: 0 | G202: 0.1944777911 | H202: 0 | I202: 1.027963166 | J202: 0 | K202: 0 | L202: 0 | M202: 0 | N202: 0 | O202: -9.375 | P202: 312.0900688
A203: 1820 | B203: 0 | C203: =$D$4*'SBUH Model'!B203 -> 0 | D203: 2 | E203: 1.774355025 | F203: 0 | G203: 0.1944777911 | H203: 0 | I203: 1.027963166 | J203: 0 | K203: 0 | L203: 0 | M203: 0 | N203: 0 | O203: -9.375 | P203: 302.7150688
... 538 more rows

Sheet SCS,SBUH Equations
A1: SCS Type I Distribution (10-min) | F1: SCS Type I Distribution (2-min) | K1: Stormwater Runoff and Routing Equations:
A3: Step | B3: Minute | C3: Cummulative Distribution | D3: Incremental Distribution | F3: Step | G3: Minute | H3: Cummulative Distribution | I3: Incremental Distribution
A4: 0 | B4: 0 | C4: 0 | D4: 0 | F4: 0 | G4: 0 | H4: 0 | I4: 0 | K4: Computing Runoff (SCS and SBUH are the same):
A5: 1 | B5: 10 | C5: 0.0027 | D5: =C5-C4 -> 0.0027 | F5: 1 | G5: 2 | H5: 0.0005 | I5: =H5-H4 -> 0.0005
A6: 2 | B6: 20 | C6: 0.0053 | D6: =C6-C5 -> 0.0026 | F6: 2 | G6: 4 | H6: 0.0011 | I6: =H6-H5 -> 0.0006
A7: 3 | B7: 30 | C7: 0.008 | D7: 0.0027 | F7: 3 | G7: 6 | H7: 0.0016 | I7: 0.0005 | N7: where:
A8: 4 | B8: 40 | C8: 0.011 | D8: 0.003 | F8: 4 | G8: 8 | H8: 0.0021 | I8: 0.0005 | N8: R = runoff (in)
A9: 5 | B9: 50 | C9: 0.014 | D9: 0.003 | F9: 5 | G9: 10 | H9: 0.0027 | I9: 0.0006 | N9: P = rainfall (in)
A10: 6 | B10: 60 | C10: 0.017 | D10: 0.003 | F10: 6 | G10: 12 | H10: 0.0032 | I10: 0.0005 | N10: Ia = initial abstraction (in)
A11: 7 | B11: 70 | C11: 0.02 | D11: 0.003 | F11: 7 | G11: 14 | H11: 0.0037 | I11: 0.0005 | N11: S = potential maximum soil moisture retention after runoff begins (in)
A12: 8 | B12: 80 | C12: 0.023 | D12: 0.003 | F12: 8 | G12: 16 | H12: 0.0043 | I12: 0.0006 | N12: CN = runoff curve number
A13: 9 | B13: 90 | C13: 0.026 | D13: 0.003 | F13: 9 | G13: 18 | H13: 0.0048 | I13: 0.0005
A14: 10 | B14: 100 | C14: 0.029 | D14: 0.003 | F14: 10 | G14: 20 | H14: 0.0053 | I14: 0.0005
A15: 11 | B15: 110 | C15: 0.032 | D15: 0.003 | F15: 11 | G15: 22 | H15: 0.0059 | I15: 0.0006
A16: 12 | B16: 120 | C16: 0.035 | D16: 0.003 | F16: 12 | G16: 24 | H16: 0.0064 | I16: 0.0005
A17: 13 | B17: 130 | C17: 0.0383 | D17: 0.0033 | F17: 13 | G17: 26 | H17: 0.0069 | I17: 0.0005
A18: 14 | B18: 140 | C18: 0.0417 | D18: 0.0034 | F18: 14 | G18: 28 | H18: 0.0075 | I18: 0.0006 | K18: SBUH Runoff Routing:
A19: 15 | B19: 150 | C19: 0.045 | D19: 0.0033 | F19: 15 | G19: 30 | H19: 0.008 | I19: 0.0005
A20: 16 | B20: 160 | C20: 0.0483 | D20: 0.0033 | F20: 16 | G20: 32 | H20: 0.0086 | I20: 0.0006 | P20: where:
A21: 17 | B21: 170 | C21: 0.0517 | D21: 0.0034 | F21: 17 | G21: 34 | H21: 0.0092 | I21: 0.0006 | P21: It = instantaneous hydrograph (cfs)
A22: 18 | B22: 180 | C22: 0.055 | D22: 0.0033 | F22: 18 | G22: 36 | H22: 0.0098 | I22: 0.0006 | P22: Rt = runoff for current time step (in)
A23: 19 | B23: 190 | C23: 0.0583 | D23: 0.0033 | F23: 19 | G23: 38 | H23: 0.0104 | I23: 0.0006 | P23: A = contributing area (ft)
A24: 20 | B24: 200 | C24: 0.0617 | D24: 0.0034 | F24: 20 | G24: 40 | H24: 0.011 | I24: 0.0006 | P24: dt = calculation time step (min)
A25: 21 | B25: 210 | C25: 0.065 | D25: 0.0033 | F25: 21 | G25: 42 | H25: 0.0116 | I25: 0.0006
A26: 22 | B26: 220 | C26: 0.0687 | D26: 0.0037 | F26: 22 | G26: 44 | H26: 0.0122 | I26: 0.0006 | P26: Qt = routed stormwater flow
A27: 23 | B27: 230 | C27: 0.0723 | D27: 0.0036 | F27: 23 | G27: 46 | H27: 0.0128 | I27: 0.0006 | P27: w = routing function
A28: 24 | B28: 240 | C28: 0.076 | D28: 0.0037 | F28: 24 | G28: 48 | H28: 0.0134 | I28: 0.0006 | P28: Tc = time of concentration
A29: 25 | B29: 250 | C29: 0.0797 | D29: 0.0037 | F29: 25 | G29: 50 | H29: 0.014 | I29: 0.0006
A30: 26 | B30: 260 | C30: 0.0833 | D30: 0.0036 | F30: 26 | G30: 52 | H30: 0.0146 | I30: 0.0006 | P30: n = Manning's roughness (0.011 for pavement)
A31: 27 | B31: 270 | C31: 0.087 | D31: 0.0037 | F31: 27 | G31: 54 | H31: 0.0152 | I31: 0.0006 | P31: L = flow lenth (ft; computed from tributary area)
A32: 28 | B32: 280 | C32: 0.091 | D32: 0.004 | F32: 28 | G32: 56 | H32: 0.0158 | I32: 0.0006 | P32: P2 = 2-year, 24-hour rainfall (in)
A33: 29 | B33: 290 | C33: 0.095 | D33: 0.004 | F33: 29 | G33: 58 | H33: 0.0164 | I33: 0.0006 | P33: s = 0.005 (ft/ft; assumed value)
A34: 30 | B34: 300 | C34: 0.099 | D34: 0.004 | F34: 30 | G34: 60 | H34: 0.017 | I34: 0.0006 | P34: Note: set minimum Tc = 5 minutes (Portland BES recommendation)
A35: 31 | B35: 310 | C35: 0.1033 | D35: 0.0043 | F35: 31 | G35: 62 | H35: 0.0176 | I35: 0.0006
A36: 32 | B36: 320 | C36: 0.1077 | D36: 0.0044 | F36: 32 | G36: 64 | H36: 0.0182 | I36: 0.0006
A37: 33 | B37: 330 | C37: 0.112 | D37: 0.0043 | F37: 33 | G37: 66 | H37: 0.0188 | I37: 0.0006 | K37: from TR-55 user manual…
A38: 34 | B38: 340 | C38: 0.1163 | D38: 0.0043 | F38: 34 | G38: 68 | H38: 0.0194 | I38: 0.0006
A39: 35 | B39: 350 | C39: 0.1207 | D39: 0.0044 | F39: 35 | G39: 70 | H39: 0.02 | I39: 0.0006
A40: 36 | B40: 360 | C40: 0.125 | D40: 0.0043 | F40: 36 | G40: 72 | H40: 0.0206 | I40: 0.0006
A41: 37 | B41: 370 | C41: 0.13 | D41: 0.005 | F41: 37 | G41: 74 | H41: 0.0212 | I41: 0.0006
A42: 38 | B42: 380 | C42: 0.135 | D42: 0.005 | F42: 38 | G42: 76 | H42: 0.0218 | I42: 0.0006
A43: 39 | B43: 390 | C43: 0.14 | D43: 0.005 | F43: 39 | G43: 78 | H43: 0.0224 | I43: 0.0006
A44: 40 | B44: 400 | C44: 0.1453 | D44: 0.0053 | F44: 40 | G44: 80 | H44: 0.023 | I44: 0.0006
A45: 41 | B45: 410 | C45: 0.1507 | D45: 0.0054 | F45: 41 | G45: 82 | H45: 0.0236 | I45: 0.0006
A46: 42 | B46: 420 | C46: 0.156 | D46: 0.0053 | F46: 42 | G46: 84 | H46: 0.0242 | I46: 0.0006
A47: 43 | B47: 430 | C47: 0.162 | D47: 0.006 | F47: 43 | G47: 86 | H47: 0.0248 | I47: 0.0006
A48: 44 | B48: 440 | C48: 0.168 | D48: 0.006 | F48: 44 | G48: 88 | H48: 0.0254 | I48: 0.0006
A49: 45 | B49: 450 | C49: 0.174 | D49: 0.006 | F49: 45 | G49: 90 | H49: 0.026 | I49: 0.0006
A50: 46 | B50: 460 | C50: 0.1807 | D50: 0.0067 | F50: 46 | G50: 92 | H50: 0.0266 | I50: 0.0006
A51: 47 | B51: 470 | C51: 0.1873 | D51: 0.0066 | F51: 47 | G51: 94 | H51: 0.0272 | I51: 0.0006
A52: 48 | B52: 480 | C52: 0.194 | D52: 0.0067 | F52: 48 | G52: 96 | H52: 0.0278 | I52: 0.0006
A53: 49 | B53: 490 | C53: 0.2023 | D53: 0.0083 | F53: 49 | G53: 98 | H53: 0.0284 | I53: 0.0006
A54: 50 | B54: 500 | C54: 0.2107 | D54: 0.0084 | F54: 50 | G54: 100 | H54: 0.029 | I54: 0.0006
A55: 51 | B55: 510 | C55: 0.219 | D55: 0.0083 | F55: 51 | G55: 102 | H55: 0.0296 | I55: 0.0006
A56: 52 | B56: 520 | C56: 0.2307 | D56: 0.0117 | F56: 52 | G56: 104 | H56: 0.0302 | I56: 0.0006
A57: 53 | B57: 530 | C57: 0.2423 | D57: 0.0116 | F57: 53 | G57: 106 | H57: 0.0308 | I57: 0.0006
A58: 54 | B58: 540 | C58: 0.254 | D58: 0.0117 | F58: 54 | G58: 108 | H58: 0.0314 | I58: 0.0006
A59: 55 | B59: 550 | C59: 0.2703 | D59: 0.0163 | F59: 55 | G59: 110 | H59: 0.032 | I59: 0.0006
A60: 56 | B60: 560 | C60: 0.2867 | D60: 0.0164 | F60: 56 | G60: 112 | H60: 0.0326 | I60: 0.0006
A61: 57 | B61: 570 | C61: 0.303 | D61: 0.0163 | F61: 57 | G61: 114 | H61: 0.0332 | I61: 0.0006
A62: 58 | B62: 580 | C62: 0.3737 | D62: 0.0707 | F62: 58 | G62: 116 | H62: 0.0338 | I62: 0.0006
A63: 59 | B63: 590 | C63: 0.4443 | D63: 0.0706 | F63: 59 | G63: 118 | H63: 0.0344 | I63: 0.0006
A64: 60 | B64: 600 | C64: 0.515 | D64: 0.0707 | F64: 60 | G64: 120 | H64: 0.035 | I64: 0.0006
A65: 61 | B65: 610 | C65: 0.5377 | D65: 0.0227 | F65: 61 | G65: 122 | H65: 0.0357 | I65: 0.0007
A66: 62 | B66: 620 | C66: 0.5603 | D66: 0.0226 | F66: 62 | G66: 124 | H66: 0.0363 | I66: 0.0006
A67: 63 | B67: 630 | C67: 0.583 | D67: 0.0227 | F67: 63 | G67: 126 | H67: 0.037 | I67: 0.0007
A68: 64 | B68: 640 | C68: 0.5967 | D68: 0.0137 | F68: 64 | G68: 128 | H68: 0.0377 | I68: 0.0007
A69: 65 | B69: 650 | C69: 0.6103 | D69: 0.0136 | F69: 65 | G69: 130 | H69: 0.0383 | I69: 0.0006
A70: 66 | B70: 660 | C70: 0.624 | D70: =C70-C69 -> 0.0137 | F70: 66 | G70: 132 | H70: 0.039 | I70: =H70-H69 -> 0.0007
A71: 67 | B71: 670 | C71: 0.634 | D71: 0.01 | F71: 67 | G71: 134 | H71: 0.0397 | I71: 0.0007
A72: 68 | B72: 680 | C72: 0.644 | D72: 0.01 | F72: 68 | G72: 136 | H72: 0.0403 | I72: 0.0006
A73: 69 | B73: 690 | C73: 0.654 | D73: 0.01 | F73: 69 | G73: 138 | H73: 0.041 | I73: 0.0007
A74: 70 | B74: 700 | C74: 0.6633 | D74: 0.0093 | F74: 70 | G74: 140 | H74: 0.0417 | I74: 0.0007
A75: 71 | B75: 710 | C75: 0.6727 | D75: 0.0094 | F75: 71 | G75: 142 | H75: 0.0423 | I75: 0.0006
A76: 72 | B76: 720 | C76: 0.682 | D76: 0.0093 | F76: 72 | G76: 144 | H76: 0.043 | I76: 0.0007
A77: 73 | B77: 730 | C77: 0.69 | D77: 0.008 | F77: 73 | G77: 146 | H77: 0.0437 | I77: 0.0007
A78: 74 | B78: 740 | C78: 0.698 | D78: 0.008 | F78: 74 | G78: 148 | H78: 0.0443 | I78: 0.0006
A79: 75 | B79: 750 | C79: 0.706 | D79: 0.008 | F79: 75 | G79: 150 | H79: 0.045 | I79: 0.0007
A80: 76 | B80: 760 | C80: 0.7133 | D80: 0.0073 | F80: 76 | G80: 152 | H80: 0.0457 | I80: 0.0007
A81: 77 | B81: 770 | C81: 0.7207 | D81: 0.0074 | F81: 77 | G81: 154 | H81: 0.0463 | I81: 0.0006
A82: 78 | B82: 780 | C82: 0.728 | D82: 0.0073 | F82: 78 | G82: 156 | H82: 0.047 | I82: 0.0007
A83: 79 | B83: 790 | C83: 0.7347 | D83: 0.0067 | F83: 79 | G83: 158 | H83: 0.0477 | I83: 0.0007
A84: 80 | B84: 800 | C84: 0.7413 | D84: 0.0066 | F84: 80 | G84: 160 | H84: 0.0483 | I84: 0.0006
A85: 81 | B85: 810 | C85: 0.748 | D85: 0.0067 | F85: 81 | G85: 162 | H85: 0.049 | I85: 0.0007
A86: 82 | B86: 820 | C86: 0.754 | D86: 0.006 | F86: 82 | G86: 164 | H86: 0.0497 | I86: 0.0007
A87: 83 | B87: 830 | C87: 0.76 | D87: 0.006 | F87: 83 | G87: 166 | H87: 0.0503 | I87: 0.0006
A88: 84 | B88: 840 | C88: 0.766 | D88: 0.006 | F88: 84 | G88: 168 | H88: 0.051 | I88: 0.0007
A89: 85 | B89: 850 | C89: 0.7717 | D89: 0.0057 | F89: 85 | G89: 170 | H89: 0.0517 | I89: 0.0007
A90: 86 | B90: 860 | C90: 0.7773 | D90: 0.0056 | F90: 86 | G90: 172 | H90: 0.0523 | I90: 0.0006
A91: 87 | B91: 870 | C91: 0.783 | D91: 0.0057 | F91: 87 | G91: 174 | H91: 0.053 | I91: 0.0007
A92: 88 | B92: 880 | C92: 0.7883 | D92: 0.0053 | F92: 88 | G92: 176 | H92: 0.0537 | I92: 0.0007
A93: 89 | B93: 890 | C93: 0.7937 | D93: 0.0054 | F93: 89 | G93: 178 | H93: 0.0543 | I93: 0.0006
A94: 90 | B94: 900 | C94: 0.799 | D94: 0.0053 | F94: 90 | G94: 180 | H94: 0.055 | I94: 0.0007
A95: 91 | B95: 910 | C95: 0.8043 | D95: 0.0053 | F95: 91 | G95: 182 | H95: 0.0557 | I95: 0.0007
A96: 92 | B96: 920 | C96: 0.8097 | D96: 0.0054 | F96: 92 | G96: 184 | H96: 0.0563 | I96: 0.0006
A97: 93 | B97: 930 | C97: 0.815 | D97: 0.0053 | F97: 93 | G97: 186 | H97: 0.057 | I97: 0.0007
A98: 94 | B98: 940 | C98: 0.82 | D98: 0.005 | F98: 94 | G98: 188 | H98: 0.0577 | I98: 0.0007
A99: 95 | B99: 950 | C99: 0.825 | D99: 0.005 | F99: 95 | G99: 190 | H99: 0.0583 | I99: 0.0006
A100: 96 | B100: 960 | C100: 0.83 | D100: 0.005 | F100: 96 | G100: 192 | H100: 0.059 | I100: 0.0007
A101: 97 | B101: 970 | C101: 0.8347 | D101: 0.0047 | F101: 97 | G101: 194 | H101: 0.0597 | I101: 0.0007
A102: 98 | B102: 980 | C102: 0.8393 | D102: 0.0046 | F102: 98 | G102: 196 | H102: 0.0603 | I102: 0.0006
A103: 99 | B103: 990 | C103: 0.844 | D103: 0.0047 | F103: 99 | G103: 198 | H103: 0.061 | I103: 0.0007
A104: 100 | B104: 1000 | C104: 0.8483 | D104: 0.0043 | F104: 100 | G104: 200 | H104: 0.0617 | I104: 0.0007
A105: 101 | B105: 1010 | C105: 0.8527 | D105: 0.0044 | F105: 101 | G105: 202 | H105: 0.0623 | I105: 0.0006
A106: 102 | B106: 1020 | C106: 0.857 | D106: 0.0043 | F106: 102 | G106: 204 | H106: 0.063 | I106: 0.0007
A107: 103 | B107: 1030 | C107: 0.8613 | D107: 0.0043 | F107: 103 | G107: 206 | H107: 0.0637 | I107: 0.0007
A108: 104 | B108: 1040 | C108: 0.8657 | D108: 0.0044 | F108: 104 | G108: 208 | H108: 0.0643 | I108: 0.0006
A109: 105 | B109: 1050 | C109: 0.87 | D109: 0.0043 | F109: 105 | G109: 210 | H109: 0.065 | I109: 0.0007
A110: 106 | B110: 1060 | C110: 0.874 | D110: 0.004 | F110: 106 | G110: 212 | H110: 0.0657 | I110: 0.0007
A111: 107 | B111: 1070 | C111: 0.878 | D111: 0.004 | F111: 107 | G111: 214 | H111: 0.0665 | I111: 0.0008
A112: 108 | B112: 1080 | C112: 0.882 | D112: 0.004 | F112: 108 | G112: 216 | H112: 0.0672 | I112: 0.0007
A113: 109 | B113: 1090 | C113: 0.8857 | D113: 0.0037 | F113: 109 | G113: 218 | H113: 0.0679 | I113: 0.0007
A114: 110 | B114: 1100 | C114: 0.8893 | D114: 0.0036 | F114: 110 | G114: 220 | H114: 0.0687 | I114: 0.0008
A115: 111 | B115: 1110 | C115: 0.893 | D115: 0.0037 | F115: 111 | G115: 222 | H115: 0.0694 | I115: 0.0007
A116: 112 | B116: 1120 | C116: 0.897 | D116: 0.004 | F116: 112 | G116: 224 | H116: 0.0701 | I116: 0.0007
A117: 113 | B117: 1130 | C117: 0.901 | D117: 0.004 | F117: 113 | G117: 226 | H117: 0.0709 | I117: 0.0008
A118: 114 | B118: 1140 | C118: 0.905 | D118: 0.004 | F118: 114 | G118: 228 | H118: 0.0716 | I118: 0.0007
A119: 115 | B119: 1150 | C119: 0.9087 | D119: 0.0037 | F119: 115 | G119: 230 | H119: 0.0723 | I119: 0.0007
A120: 116 | B120: 1160 | C120: 0.9123 | D120: 0.0036 | F120: 116 | G120: 232 | H120: 0.0731 | I120: 0.0008
A121: 117 | B121: 1170 | C121: 0.916 | D121: 0.0037 | F121: 117 | G121: 234 | H121: 0.0738 | I121: 0.0007
A122: 118 | B122: 1180 | C122: 0.9193 | D122: 0.0033 | F122: 118 | G122: 236 | H122: 0.0745 | I122: 0.0007
A123: 119 | B123: 1190 | C123: 0.9227 | D123: 0.0034 | F123: 119 | G123: 238 | H123: 0.0753 | I123: 0.0008
A124: 120 | B124: 1200 | C124: 0.926 | D124: 0.0033 | F124: 120 | G124: 240 | H124: 0.076 | I124: 0.0007
A125: 121 | B125: 1210 | C125: 0.9293 | D125: 0.0033 | F125: 121 | G125: 242 | H125: 0.0767 | I125: 0.0007
A126: 122 | B126: 1220 | C126: 0.9327 | D126: 0.0034 | F126: 122 | G126: 244 | H126: 0.0775 | I126: 0.0008
A127: 123 | B127: 1230 | C127: 0.936 | D127: 0.0033 | F127: 123 | G127: 246 | H127: 0.0782 | I127: 0.0007
A128: 124 | B128: 1240 | C128: 0.9393 | D128: 0.0033 | F128: 124 | G128: 248 | H128: 0.0789 | I128: 0.0007
A129: 125 | B129: 1250 | C129: 0.9427 | D129: 0.0034 | F129: 125 | G129: 250 | H129: 0.0797 | I129: 0.0008
A130: 126 | B130: 1260 | C130: 0.946 | D130: 0.0033 | F130: 126 | G130: 252 | H130: 0.0804 | I130: 0.0007
A131: 127 | B131: 1270 | C131: 0.9493 | D131: 0.0033 | F131: 127 | G131: 254 | H131: 0.0811 | I131: 0.0007
A132: 128 | B132: 1280 | C132: 0.9527 | D132: 0.0034 | F132: 128 | G132: 256 | H132: 0.0819 | I132: 0.0008
A133: 129 | B133: 1290 | C133: 0.956 | D133: 0.0033 | F133: 129 | G133: 258 | H133: 0.0826 | I133: 0.0007
A134: 130 | B134: 1300 | C134: 0.959 | D134: =C134-C133 -> 0.003 | F134: 130 | G134: 260 | H134: 0.0833 | I134: =H134-H133 -> 0.0007
A135: 131 | B135: 1310 | C135: 0.962 | D135: 0.003 | F135: 131 | G135: 262 | H135: 0.0841 | I135: 0.0008
A136: 132 | B136: 1320 | C136: 0.965 | D136: 0.003 | F136: 132 | G136: 264 | H136: 0.0848 | I136: 0.0007
A137: 133 | B137: 1330 | C137: 0.968 | D137: 0.003 | F137: 133 | G137: 266 | H137: 0.0855 | I137: 0.0007
A138: 134 | B138: 1340 | C138: 0.971 | D138: 0.003 | F138: 134 | G138: 268 | H138: 0.0863 | I138: 0.0008
A139: 135 | B139: 1350 | C139: 0.974 | D139: 0.003 | F139: 135 | G139: 270 | H139: 0.087 | I139: 0.0007
A140: 136 | B140: 1360 | C140: 0.977 | D140: 0.003 | F140: 136 | G140: 272 | H140: 0.0878 | I140: 0.0008
A141: 137 | B141: 1370 | C141: 0.98 | D141: 0.003 | F141: 137 | G141: 274 | H141: 0.0886 | I141: 0.0008
A142: 138 | B142: 1380 | C142: 0.983 | D142: 0.003 | F142: 138 | G142: 276 | H142: 0.0894 | I142: 0.0008
A143: 139 | B143: 1390 | C143: 0.986 | D143: 0.003 | F143: 139 | G143: 278 | H143: 0.0902 | I143: 0.0008
A144: 140 | B144: 1400 | C144: 0.989 | D144: 0.003 | F144: 140 | G144: 280 | H144: 0.091 | I144: 0.0008
A145: 141 | B145: 1410 | C145: 0.992 | D145: 0.003 | F145: 141 | G145: 282 | H145: 0.0918 | I145: 0.0008
A146: 142 | B146: 1420 | C146: 0.9947 | D146: 0.0027 | F146: 142 | G146: 284 | H146: 0.0926 | I146: 0.0008
A147: 143 | B147: 1430 | C147: 0.9973 | D147: 0.0026 | F147: 143 | G147: 286 | H147: 0.0934 | I147: 0.0008
A148: 144 | B148: 1440 | C148: 1 | D148: 0.0027 | F148: 144 | G148: 288 | H148: 0.0942 | I148: 0.0008
F149: 145 | G149: 290 | H149: 0.095 | I149: 0.0008
F150: 146 | G150: 292 | H150: 0.0958 | I150: 0.0008
F151: 147 | G151: 294 | H151: 0.0966 | I151: 0.0008
F152: 148 | G152: 296 | H152: 0.0974 | I152: 0.0008
F153: 149 | G153: 298 | H153: 0.0982 | I153: 0.0008
F154: 150 | G154: 300 | H154: 0.099 | I154: 0.0008
F155: 151 | G155: 302 | H155: 0.0999 | I155: 0.0009
F156: 152 | G156: 304 | H156: 0.1007 | I156: 0.0008
F157: 153 | G157: 306 | H157: 0.1016 | I157: 0.0009
F158: 154 | G158: 308 | H158: 0.1025 | I158: 0.0009
F159: 155 | G159: 310 | H159: 0.1033 | I159: 0.0008
F160: 156 | G160: 312 | H160: 0.1042 | I160: 0.0009
F161: 157 | G161: 314 | H161: 0.1051 | I161: 0.0009
F162: 158 | G162: 316 | H162: 0.1059 | I162: 0.0008
F163: 159 | G163: 318 | H163: 0.1068 | I163: 0.0009
F164: 160 | G164: 320 | H164: 0.1077 | I164: 0.0009
F165: 161 | G165: 322 | H165: 0.1085 | I165: 0.0008
F166: 162 | G166: 324 | H166: 0.1094 | I166: 0.0009
F167: 163 | G167: 326 | H167: 0.1103 | I167: 0.0009
F168: 164 | G168: 328 | H168: 0.1111 | I168: 0.0008
F169: 165 | G169: 330 | H169: 0.112 | I169: 0.0009
F170: 166 | G170: 332 | H170: 0.1129 | I170: 0.0009
F171: 167 | G171: 334 | H171: 0.1137 | I171: 0.0008
F172: 168 | G172: 336 | H172: 0.1146 | I172: 0.0009
F173: 169 | G173: 338 | H173: 0.1155 | I173: 0.0009
F174: 170 | G174: 340 | H174: 0.1163 | I174: 0.0008
F175: 171 | G175: 342 | H175: 0.1172 | I175: 0.0009
F176: 172 | G176: 344 | H176: 0.1181 | I176: 0.0009
F177: 173 | G177: 346 | H177: 0.1189 | I177: 0.0008
F178: 174 | G178: 348 | H178: 0.1198 | I178: 0.0009
F179: 175 | G179: 350 | H179: 0.1207 | I179: 0.0009
F180: 176 | G180: 352 | H180: 0.1215 | I180: 0.0008
F181: 177 | G181: 354 | H181: 0.1224 | I181: 0.0009
F182: 178 | G182: 356 | H182: 0.1233 | I182: 0.0009
F183: 179 | G183: 358 | H183: 0.1241 | I183: 0.0008
F184: 180 | G184: 360 | H184: 0.125 | I184: 0.0009
F185: 181 | G185: 362 | H185: 0.126 | I185: 0.001
F186: 182 | G186: 364 | H186: 0.127 | I186: 0.001
F187: 183 | G187: 366 | H187: 0.128 | I187: 0.001
F188: 184 | G188: 368 | H188: 0.129 | I188: 0.001
F189: 185 | G189: 370 | H189: 0.13 | I189: 0.001
F190: 186 | G190: 372 | H190: 0.131 | I190: 0.001
F191: 187 | G191: 374 | H191: 0.132 | I191: 0.001
F192: 188 | G192: 376 | H192: 0.133 | I192: 0.001
F193: 189 | G193: 378 | H193: 0.134 | I193: 0.001
F194: 190 | G194: 380 | H194: 0.135 | I194: 0.001
F195: 191 | G195: 382 | H195: 0.136 | I195: 0.001
F196: 192 | G196: 384 | H196: 0.137 | I196: 0.001
F197: 193 | G197: 386 | H197: 0.138 | I197: 0.001
F198: 194 | G198: 388 | H198: 0.139 | I198: =H198-H197 -> 0.001
F199: 195 | G199: 390 | H199: 0.14 | I199: 0.001
F200: 196 | G200: 392 | H200: 0.1411 | I200: 0.0011
F201: 197 | G201: 394 | H201: 0.1421 | I201: 0.001
... 523 more rows

Sheet Lookups, Constants
A1: Lookup Tables for Combo Boxes | D1: Hydraulic Constants
A3: DMA Type | B3: Code | E3: Gravel layer porosity: | F3: 0.4
A4: Self-Treating | B4: STA
A5: Self-Retaining | B5: SRA
A6: Drains to SCM | B6: 2SCM
A7: Drains to Self-Retaining | B7: 2SRA
A9: SCM Type
A10: Bioretention
A11: Direct Infiltration
A13: DMA Surface Types | B13: Curve Number | C13: Runoff Factor (WQ)
A14: Roof | B14: 98 | C14: 0.9
A15: Concrete or asphalt | B15: 98 | C15: 0.9
A16: Grouted unit pavers | B16: 98 | C16: 0.9
A17: Pervious concrete | C17: 0
A18: Porous asphalt | C18: 0
A19: Unit pavers set in sand | B19: 89 | C19: 0.2
A20: Open/porous pavers | C20: 0
A21: Crushed aggregate | C21: 0
A22: Turfblock | C22: 0
A23: Landscape | B23: 68 | C23: 0.1
A25: SCM Optimization
A26: Area
A27: Depth
A29: USA Lookup
A30: Yes
A31: No
A33: Compliance Approach
A34: Tier 2 - Treatment
A35: Tier 3 - Retention
A37: Infiltration Rate
A38: HSG A/B
A39: HSG C/D
A40: Site-Specific
A42: Impervious Type | B42: Code
A43: New | B43: NEW
A44: Replaced | B44: RPL
A45: Replaced within a USA | B45: RUSA
